Workbook

Sheet ECHEANCIER
I1: COMPTABILISATION | J1: MODE PAIEMENT | K1: TIERS
A2: N° SAISIE | B2: JOURS MENS. | C2: JOURS TRIM. | D2: PAIEMENT | E2: TIERS | F2: CATEGORIE | G2: MONTANT | I2: C. PORT D | J2: Carte | K2: Unico
A3: 1 | B3: 1 | D3: Vir recu | E3: ARCO | F3: RETRAITE | G3: 750 | I3: C. PORT C | J3: Cheque | K3: Geant
A4: 2 | B4: 5 | D4: Prel | E4: UNEO | F4: MUTUELLE | G4: -100 | I4: DEPENSES | J4: Prel | K4: Carrefour
A5: 3 | B5: 10 | D5: Vir recu | E5: CRAM | F5: RETRAITE | G5: 1200 | I5: DIVERS | J5: Vir emis | K5: Marche Fermier
A6: 4 | B6: 10 | D6: Prel | E6: A.L.M. | F6: EAUX | G6: -40 | I6: REC DIV | J6: Retrait | K6: Bontemps
A7: 5 | B7: 15 | D7: Prel | E7: T.P. | F7: T.HABI | G7: -100 | J7: TIP | K7: Lutz
A8: 6 | B8: 15 | D8: Prel | E8: T.P. | F8: T.FONC | G8: -110 | J8: Vers | K8: Amazon
A9: 7 | B9: 15 | D9: Prel | E9: T.P. | F9: IMP.REV | G9: -350 | J9: Depot cheque | K9: Dr Dupont
A10: 8 | B10: 20 | D10: Prel | E10: ENGIE | F10: GAZ-ELEC | G10: -120 | J10: Vir recu | K10: Poste
A11: 9 | C11: 27 | D11: Prel | E11: ST CHRIST | F11: ASS.VOIT | G11: -95
B18: L'échéance trimsertrielle est le 27 du premier mois de chaque trimestre

Sheet MODELE
A1: =MID(CELL("filename",A1),FIND("]",CELL("filename",A1))+1,32) -> MODELE
A2: N° SAISIE | B2: JOURS | C2: MODE | D2: TIERS | E2: CATEGORIE | F2: BANQUE POSTALE | H2: RECETTES | J2: DEPENSES | K2: C. PORT | M2: DIVERS
C3: PAIEMENT | F3: DEBIT/CREDIT | G3: SOLDE | H3: RETRAITE | I3: DIVERSES | K3: LOYER | L3: CHARGES
A4: REPORT | G4: 7500
A5: 1 | B5: =IF(A5="","",IF($A5=1,"1",IF($A5=2,"5",IF($A5=3,"10",IF($A5=4,"10",IF($A5=5,"15",IF($A5=6,"15",IF($A5=7,"15",IF($A5=8,"20",""))))))))) -> 1 | C5: =IF($A5=1,ECHEANCIER!$D$3,IF($A5=3,ECHEANCIER!$D$3,IF($A8=4,ECHEANCIER!$D$4,IF($A8=5,ECHEANCIER!$D$4,IF($A8=6,ECHEANCIER!$D$4,IF($A8=7,ECHEANCIER!$D$4,IF($A8=8,ECHEANCIER!$D$4))))))) -> Vir recu | D5: =IF($A5="","",IF($A5=1,ECHEANCIER!$E$3,IF($A5=3,ECHEANCIER!$E$3,IF($A5=2,ECHEANCIER!$E$4,IF($A5=4,ECHEANCIER!$E$6,IF($A5=5,ECHEANCIER!$E$7,IF($A5=6,ECHEANCIER!$E$8,IF($A5=7,ECHEANCIER!$E$9,IF($A5=8,ECHEANCIER!$E$10,""""))))))))) -> ARCO | E5: =IF(A5="","",IF($A5=1,ECHEANCIER!$F$3,IF($A5=3,ECHEANCIER!$F$3,IF($A5=2,ECHEANCIER!$F$4,IF($A5=4,ECHEANCIER!$F$6,IF($A5=5,ECHEANCIER!$F$7,IF($A5=6,ECHEANCIER!$F$8,IF($A5=7,ECHEANCIER!$F$9,IF($A5=8,ECHEANCIER!$F$10,""""))))))))) -> RETRAITE | F5: =IF($A5="","",IF($A5=1,ECHEANCIER!$G$3,IF($A5=3,ECHEANCIER!$G$5,IF($A5<>"RETRAITE","")))) -> 750 | G5: =SUM(G4)+SUM(F5) -> 8250 | H5: =F5 -> 750 | J5: =IF($A5="","",IF($A5=2,ECHEANCIER!$G$4,IF($A5=4,ECHEANCIER!$G$6,IF($A5=5,ECHEANCIER!$G$7,IF($A5=6,ECHEANCIER!$G$8,IF($A5=7,ECHEANCIER!$G$9,IF($A5=8,ECHEANCIER!$G$10,""))))))) -> 
A6: 3 | B6: 10 | C6: =IF($A6=1,ECHEANCIER!$D$3,IF($A6=3,ECHEANCIER!$D$3,IF($A9=4,ECHEANCIER!$D$4,IF($A9=5,ECHEANCIER!$D$4,IF($A9=6,ECHEANCIER!$D$4,IF($A9=7,ECHEANCIER!$D$4,IF($A9=8,ECHEANCIER!$D$4))))))) -> Vir recu | D6: =IF($A6="","",IF($A6=1,ECHEANCIER!$E$3,IF($A6=3,ECHEANCIER!$E$3,IF($A6=2,ECHEANCIER!$E$4,IF($A6=4,ECHEANCIER!$E$6,IF($A6=5,ECHEANCIER!$E$7,IF($A6=6,ECHEANCIER!$E$8,IF($A6=7,ECHEANCIER!$E$9,IF($A6=8,ECHEANCIER!$E$10,""""))))))))) -> ARCO | E6: =IF(A6="","",IF($A6=1,ECHEANCIER!$F$3,IF($A6=3,ECHEANCIER!$F$3,IF($A6=2,ECHEANCIER!$F$4,IF($A6=4,ECHEANCIER!$F$6,IF($A6=5,ECHEANCIER!$F$7,IF($A6=6,ECHEANCIER!$F$8,IF($A6=7,ECHEANCIER!$F$9,IF($A6=8,ECHEANCIER!$F$10))))))))) -> RETRAITE | F6: =IF($A6="","",IF($A6=1,ECHEANCIER!$G$3,IF($A6=3,ECHEANCIER!$G$5,IF($A6<>"RETRAITE","")))) -> 1200 | G6: =SUM(G5)+SUM(F6) -> 9450 | H6: =F6 -> 1200 | J6: =IF($A6="","",IF($A6=2,ECHEANCIER!$G$4,IF($A6=4,ECHEANCIER!$G$6,IF($A6=5,ECHEANCIER!$G$7,IF($A6=6,ECHEANCIER!$G$8,IF($A6=7,ECHEANCIER!$G$9,IF($A6=8,ECHEANCIER!$G$10,""))))))) -> 
A7: 2 | B7: 5 | C7: =IF($A7=1,ECHEANCIER!$D$3,IF($A7=3,ECHEANCIER!$D$3,IF($A10=4,ECHEANCIER!$D$4,IF($A10=5,ECHEANCIER!$D$4,IF($A10=6,ECHEANCIER!$D$4,IF($A10=7,ECHEANCIER!$D$4,IF($A10=8,ECHEANCIER!$D$4))))))) -> Prel | D7: =IF($A7="","",IF($A7=1,ECHEANCIER!$E$3,IF($A7=3,ECHEANCIER!$E$3,IF($A7=2,ECHEANCIER!$E$4,IF($A7=4,ECHEANCIER!$E$6,IF($A7=5,ECHEANCIER!$E$7,IF($A7=6,ECHEANCIER!$E$8,IF($A7=7,ECHEANCIER!$E$9,IF($A7=8,ECHEANCIER!$E$10,""""))))))))) -> UNEO | E7: =IF(A7="","",IF($A7=1,ECHEANCIER!$F$3,IF($A7=3,ECHEANCIER!$F$3,IF($A7=2,ECHEANCIER!$F$4,IF($A7=4,ECHEANCIER!$F$6,IF($A7=5,ECHEANCIER!$F$7,IF($A7=6,ECHEANCIER!$F$8,IF($A7=7,ECHEANCIER!$F$9,IF($A7=8,"ECHEANCIER!$E$10;"""))))))))) -> MUTUELLE | F7: =IF($A7="","",IF($A7=2,ECHEANCIER!$G$4,IF($A7=4,ECHEANCIER!$G$6,IF($A7=5,ECHEANCIER!$G$7,IF($A7=6,ECHEANCIER!$G$8,IF($A7=7,ECHEANCIER!$G$9,IF($A7=8,ECHEANCIER!$G$10,""))))))) -> -100 | G7: 9350 | H7: =IF($A7="","",IF($A7=1,ECHEANCIER!$G$3,IF($A7=3,ECHEANCIER!$G$5,IF($A7<>"RETRAITE","")))) ->  | J7: =F7 -> -100
A8: 4 | B8: 10 | C8: =IF($A8=1,ECHEANCIER!$D$3,IF($A8=3,ECHEANCIER!$D$3,IF($A11=4,ECHEANCIER!$D$4,IF($A11=5,ECHEANCIER!$D$4,IF($A11=6,ECHEANCIER!$D$4,IF($A11=7,ECHEANCIER!$D$4,IF($A11=8,ECHEANCIER!$D$4))))))) -> Prel | D8: =IF($A8="","",IF($A8=1,ECHEANCIER!$E$3,IF($A8=3,ECHEANCIER!$E$3,IF($A8=2,ECHEANCIER!$E$4,IF($A8=4,ECHEANCIER!$E$6,IF($A8=5,ECHEANCIER!$E$7,IF($A8=6,ECHEANCIER!$E$8,IF($A8=7,ECHEANCIER!$E$9,IF($A8=8,ECHEANCIER!$E$10,""""))))))))) -> A.L.M. | E8: =IF(A8="","",IF($A8=1,ECHEANCIER!$F$3,IF($A8=3,ECHEANCIER!$F$3,IF($A8=2,ECHEANCIER!$F$4,IF($A8=4,ECHEANCIER!$F$6,IF($A8=5,ECHEANCIER!$F$7,IF($A8=6,ECHEANCIER!$F$8,IF($A8=7,ECHEANCIER!$F$9,IF($A8=8,"ECHEANCIER!$E$10;"""))))))))) -> EAUX | F8: =IF($A8="","",IF($A8=2,ECHEANCIER!$G$4,IF($A8=4,ECHEANCIER!$G$6,IF($A8=5,ECHEANCIER!$G$7,IF($A8=6,ECHEANCIER!$G$8,IF($A8=7,ECHEANCIER!$G$9,IF($A8=8,ECHEANCIER!$G$10,""))))))) -> -40 | G8: 9310 | H8: =IF($A8="","",IF($A8=1,ECHEANCIER!$G$3,IF($A8=3,ECHEANCIER!$G$5,IF($A8<>"RETRAITE","")))) ->  | J8: =F8 -> -40
A9: 5 | B9: 15 | C9: =IF($A9=1,ECHEANCIER!$D$3,IF($A9=3,ECHEANCIER!$D$3,IF($A12=4,ECHEANCIER!$D$4,IF($A12=5,ECHEANCIER!$D$4,IF($A12=6,ECHEANCIER!$D$4,IF($A12=7,ECHEANCIER!$D$4,IF($A12=8,ECHEANCIER!$D$4))))))) -> Prel | D9: =IF($A9="","",IF($A9=1,ECHEANCIER!$E$3,IF($A9=3,ECHEANCIER!$E$3,IF($A9=2,ECHEANCIER!$E$4,IF($A9=4,ECHEANCIER!$E$6,IF($A9=5,ECHEANCIER!$E$7,IF($A9=6,ECHEANCIER!$E$8,IF($A9=7,ECHEANCIER!$E$9,IF($A9=8,ECHEANCIER!$E$10,""""))))))))) -> T.P. | E9: =IF(A9="","",IF($A9=1,ECHEANCIER!$F$3,IF($A9=3,ECHEANCIER!$F$3,IF($A9=2,ECHEANCIER!$F$4,IF($A9=4,ECHEANCIER!$F$6,IF($A9=5,ECHEANCIER!$F$7,IF($A9=6,ECHEANCIER!$F$8,IF($A9=7,ECHEANCIER!$F$9,IF($A9=8,"ECHEANCIER!$E$10;"""))))))))) -> T.HABI | F9: =IF($A9="","",IF($A9=2,ECHEANCIER!$G$4,IF($A9=4,ECHEANCIER!$G$6,IF($A9=5,ECHEANCIER!$G$7,IF($A9=6,ECHEANCIER!$G$8,IF($A9=7,ECHEANCIER!$G$9,IF($A9=8,ECHEANCIER!$G$10,""))))))) -> -100 | G9: 9210 | H9: =IF($A9="","",IF($A9=1,ECHEANCIER!$G$3,IF($A9=3,ECHEANCIER!$G$5,IF($A9<>"RETRAITE","")))) ->  | J9: -100
A10: 6 | B10: 15 | C10: =IF($A10=1,ECHEANCIER!$D$3,IF($A10=3,ECHEANCIER!$D$3,IF($A10=4,ECHEANCIER!$D$4,IF($A10=5,ECHEANCIER!$D$4,IF($A10=6,ECHEANCIER!$D$4,IF($A10=7,ECHEANCIER!$D$4,IF($A10=8,ECHEANCIER!$D$4))))))) -> Prel | D10: =IF($A10="","",IF($A10=1,ECHEANCIER!$E$3,IF($A10=3,ECHEANCIER!$E$3,IF($A10=2,ECHEANCIER!$E$4,IF($A10=4,ECHEANCIER!$E$6,IF($A10=5,ECHEANCIER!$E$7,IF($A10=6,ECHEANCIER!$E$8,IF($A10=7,ECHEANCIER!$E$9,IF($A10=8,ECHEANCIER!$E$10,""""))))))))) -> T.P. | E10: =IF(A10="","",IF($A10=1,ECHEANCIER!$F$3,IF($A10=3,ECHEANCIER!$F$3,IF($A10=2,ECHEANCIER!$F$4,IF($A10=4,ECHEANCIER!$F$6,IF($A10=5,ECHEANCIER!$F$7,IF($A10=6,ECHEANCIER!$F$8,IF($A10=7,ECHEANCIER!$F$9,IF($A10=8,"ECHEANCIER!$E$10;"""))))))))) -> T.FONC | F10: =IF($A10="","",IF($A10=2,ECHEANCIER!$G$4,IF($A10=4,ECHEANCIER!$G$6,IF($A10=5,ECHEANCIER!$G$7,IF($A10=6,ECHEANCIER!$G$8,IF($A10=7,ECHEANCIER!$G$9,IF($A10=8,ECHEANCIER!$G$10,""))))))) -> -110 | G10: 9100 | H10: =IF($A10="","",IF($A10=1,ECHEANCIER!$G$3,IF($A10=3,ECHEANCIER!$G$5,IF($A10<>"RETRAITE","")))) ->  | J10: -110
A11: 7 | B11: 15 | C11: =IF($A11=1,ECHEANCIER!$D$3,IF($A11=3,ECHEANCIER!$D$3,IF($A11=4,ECHEANCIER!$D$4,IF($A11=5,ECHEANCIER!$D$4,IF($A11=6,ECHEANCIER!$D$4,IF($A11=7,ECHEANCIER!$D$4,IF($A11=8,ECHEANCIER!$D$4))))))) -> Prel | D11: =IF($A11="","",IF($A11=1,ECHEANCIER!$E$3,IF($A11=3,ECHEANCIER!$E$3,IF($A11=2,ECHEANCIER!$E$4,IF($A11=4,ECHEANCIER!$E$6,IF($A11=5,ECHEANCIER!$E$7,IF($A11=6,ECHEANCIER!$E$8,IF($A11=7,ECHEANCIER!$E$9,IF($A11=8,ECHEANCIER!$E$10,""""))))))))) -> T.P. | E11: =IF(A11="","",IF($A11=1,ECHEANCIER!$F$3,IF($A11=3,ECHEANCIER!$F$3,IF($A11=2,ECHEANCIER!$F$4,IF($A11=4,ECHEANCIER!$F$6,IF($A11=5,ECHEANCIER!$F$7,IF($A11=6,ECHEANCIER!$F$8,IF($A11=7,ECHEANCIER!$F$9,IF($A11=8,"ECHEANCIER!$E$10;"""))))))))) -> IMP.REV | F11: =IF($A11="","",IF($A11=2,ECHEANCIER!$G$4,IF($A11=4,ECHEANCIER!$G$6,IF($A11=5,ECHEANCIER!$G$7,IF($A11=6,ECHEANCIER!$G$8,IF($A11=7,ECHEANCIER!$G$9,IF($A11=8,ECHEANCIER!$G$10,""))))))) -> -350 | G11: 8750 | H11: =IF($A11="","",IF($A11=1,ECHEANCIER!$G$3,IF($A11=3,ECHEANCIER!$G$5,IF($A11<>"RETRAITE","")))) ->  | J11: -350
A12: 8 | B12: 20 | C12: =IF($A12=1,ECHEANCIER!$D$3,IF($A12=3,ECHEANCIER!$D$3,IF($A12=4,ECHEANCIER!$D$4,IF($A12=5,ECHEANCIER!$D$4,IF($A12=6,ECHEANCIER!$D$4,IF($A12=7,ECHEANCIER!$D$4,IF($A12=8,ECHEANCIER!$D$4,IF($A12=9,ECHEANCIER!$D$11)))))))) -> Prel | D12: =IF($A12="","",IF($A12=1,ECHEANCIER!$E$3,IF($A12=3,ECHEANCIER!$E$3,IF($A12=2,ECHEANCIER!$E$4,IF($A12=4,ECHEANCIER!$E$6,IF($A12=5,ECHEANCIER!$E$7,IF($A12=6,ECHEANCIER!$E$8,IF($A12=7,ECHEANCIER!$E$9,IF($A12=8,ECHEANCIER!$E$10,IF($A12=9,ECHEANCIER!$E$11,"""")))))))))) -> ENGIE | E12: =IF(A12="","",IF($A12=1,ECHEANCIER!$F$3,IF($A12=3,ECHEANCIER!$F$3,IF($A12=2,ECHEANCIER!$F$4,IF($A12=4,ECHEANCIER!$F$6,IF($A12=5,ECHEANCIER!$F$7,IF($A12=6,ECHEANCIER!$F$8,IF($A12=7,ECHEANCIER!$F$9,IF($A12=8,ECHEANCIER!$F$10,""""))))))))) -> GAZ-ELEC | F12: =IF($A12="","",IF($A12=2,ECHEANCIER!$G$4,IF($A12=4,ECHEANCIER!$G$6,IF($A12=5,ECHEANCIER!$G$7,IF($A12=6,ECHEANCIER!$G$8,IF($A12=7,ECHEANCIER!$G$9,IF($A12=8,ECHEANCIER!$G$10,""))))))) -> -120 | G12: 8630 | H12: =IF($A12="","",IF($A12=1,ECHEANCIER!$G$3,IF($A12=3,ECHEANCIER!$G$5,IF($A12<>"RETRAITE","")))) ->  | J12: -120
A13: 9 | B13: =IF(A13="","",IF($A13=1,"1",IF($A13=2,"5",IF($A13=3,"10",IF($A13=4,"10",IF($A13=5,"15",IF($A13=6,"15",IF($A13=7,"15",IF($A13=8,"20",IF($A13=9,"27","")))))))))) -> 27 | C13: =IF($A13=1,ECHEANCIER!$D$3,IF($A13=3,ECHEANCIER!$D$3,IF($A13=4,ECHEANCIER!$D$4,IF($A13=5,ECHEANCIER!$D$4,IF($A13=6,ECHEANCIER!$D$4,IF($A13=7,ECHEANCIER!$D$4,IF($A13=8,ECHEANCIER!$D$4,IF($A13=9,ECHEANCIER!$D$11)))))))) -> Prel | D13: =IF($A13="","",IF($A13=1,ECHEANCIER!$E$3,IF($A13=3,ECHEANCIER!$E$3,IF($A13=2,ECHEANCIER!$E$4,IF($A13=4,ECHEANCIER!$E$6,IF($A13=5,ECHEANCIER!$E$7,IF($A13=6,ECHEANCIER!$E$8,IF($A13=7,ECHEANCIER!$E$9,IF($A13=8,ECHEANCIER!$E$10,IF($A13=9,ECHEANCIER!$E$11,"""")))))))))) -> ST CHRIST | E13: =+IF($A13=9,"ass.voit") -> ass.voit | F13: =IF(AND($A13=9,$E13="ASS.VOIT",OR($A$1="modele",$A$1="avril",$A$1="juillet",$A$1="octobre")),ECHEANCIER!$G$11,"") -> -95 | G13: 8535 | J13: -95 | K13: =IF($E13="C. PORT LOYER",$F13,0) -> 0 | L13: =IF($E13="C. PORT CHARGES",$F13,0) -> 0 | M13: =IF($E13="MOUVEMENTS",$F13,0) -> 0
A14: 10 | B14: 25 | D14: Carrefour | E14: RECETTES DIVERSES | F14: 40 | G14: 8575 | I14: =IF($E14="RECETTES DIVERSES",$F14,0) -> 40 | J14: =IF($E14="DEPENSES",$F14,0) -> 0 | K14: =IF($E14="C. PORT LOYER",$F14,0) -> 0 | L14: =IF($E14="C. PORT CHARGES",$F14,0) -> 0 | M14: =IF($E14="MOUVEMENTS",$F14,0) -> 0
A15: 11 | B15: 26 | D15: Lutz | E15: C. PORT CHARGES | F15: -135 | G15: 8440 | I15: =IF($E15="RECETTES DIVERSES",$F15,0) -> 0 | J15: 0 | K15: 0 | L15: -135 | M15: 0
A16: 12 | B16: 26 | D16: Lutz | E16: C. PORT LOYER | F16: 650 | G16: 9090 | I16: =IF($E16="RECETTES DIVERSES",$F16,0) -> 0 | J16: 0 | K16: 650 | L16: 0 | M16: 0
A17: 13 | B17: 29 | D17: Poste | E17: DIVERS | F17: -500 | G17: 8590 | I17: 0 | J17: 0 | K17: 0 | L17: 0 | M17: =IF($E17="DIVERS",$F17,0) -> -500
G18: =SUM(G17)+SUM(F18) -> 8590 | I18: 0 | J18: 0 | K18: 0 | L18: 0 | M18: 0
F19: =IF($A19="","",IF($A19=2,ECHEANCIER!$G$4,IF($A19=4,ECHEANCIER!$G$6,IF($A19=5,ECHEANCIER!$G$7,IF($A19=6,ECHEANCIER!$G$8,IF($A19=7,ECHEANCIER!$G$9,IF($A19=8,ECHEANCIER!$G$10,""))))))) ->  | G19: 8590 | I19: 0 | J19: =IF($A19="","",IF($A19=2,ECHEANCIER!$G$4,IF($A19=4,ECHEANCIER!$G$6,IF($A19=5,ECHEANCIER!$G$7,IF($A19=6,ECHEANCIER!$G$8,IF($A19=7,ECHEANCIER!$G$9,IF($A19=8,ECHEANCIER!$G$10,""))))))) ->  | K19: 0 | L19: 0 | M19: 0
G20: 8590 | I20: 0 | J20: =F20 -> 0 | K20: 0 | L20: 0 | M20: 0
A24: TOTAL MOIS | H24: =SUM(H5:H23) -> 1950 | I24: =SUM(I5:I23) -> 40 | J24: =SUM(J5:J23) -> -915 | K24: 650 | L24: -135 | M24: -500
A25: SOUS TOTAL | H25: =H24+H4 -> 1950 | I25: =I24+I4 -> 40 | K25: =K24+K4 -> 650 | L25: -135
A26: TOTAL | G26: =G20 -> 8590 | H26: =SUM(H25:I25) -> 1990 | J26: =J24+J4 -> -915 | K26: =SUM(K25:L25) -> 515 | M26: =M24+M4 -> -500

Sheet JANVIER
A1: =MID(CELL("filename",A1),FIND("]",CELL("filename",A1))+1,32) -> JANVIER
A2: N° SAISIE | B2: JOURS | C2: MODE | D2: TIERS | E2: CATEGORIE | F2: BANQUE POSTALE | H2: RECETTES | J2: DEPENSES | K2: C. PORT | M2: DIVERS
C3: PAIEMENT | F3: DEBIT/CREDIT | G3: SOLDE | H3: RETRAITE | I3: DIVERSES | K3: LOYER | L3: CHARGES
A4: REPORT | G4: 7500
A5: 1 | B5: =IF(A5="","",IF($A5=1,"1",IF($A5=2,"5",IF($A5=3,"10",IF($A5=4,"10",IF($A5=5,"15",IF($A5=6,"15",IF($A5=7,"15",IF($A5=8,"20",""))))))))) -> 1 | C5: =IF($A5=1,ECHEANCIER!$D$3,IF($A5=3,ECHEANCIER!$D$3,IF($A8=4,ECHEANCIER!$D$4,IF($A8=5,ECHEANCIER!$D$4,IF($A8=6,ECHEANCIER!$D$4,IF($A8=7,ECHEANCIER!$D$4,IF($A8=8,ECHEANCIER!$D$4))))))) -> Vir recu | D5: =IF($A5="","",IF($A5=1,ECHEANCIER!$E$3,IF($A5=3,ECHEANCIER!$E$3,IF($A5=2,ECHEANCIER!$E$4,IF($A5=4,ECHEANCIER!$E$6,IF($A5=5,ECHEANCIER!$E$7,IF($A5=6,ECHEANCIER!$E$8,IF($A5=7,ECHEANCIER!$E$9,IF($A5=8,ECHEANCIER!$E$10,""""))))))))) -> ARCO | E5: =IF(A5="","",IF($A5=1,ECHEANCIER!$F$3,IF($A5=3,ECHEANCIER!$F$3,IF($A5=2,ECHEANCIER!$F$4,IF($A5=4,ECHEANCIER!$F$6,IF($A5=5,ECHEANCIER!$F$7,IF($A5=6,ECHEANCIER!$F$8,IF($A5=7,ECHEANCIER!$F$9,IF($A5=8,ECHEANCIER!$F$10,""""))))))))) -> RETRAITE | F5: =IF($A5="","",IF($A5=1,ECHEANCIER!$G$3,IF($A5=3,ECHEANCIER!$G$5,IF($A5<>"RETRAITE","")))) -> 750 | G5: =SUM(G4)+SUM(F5) -> 8250 | H5: =F5 -> 750 | J5: =IF($A5="","",IF($A5=2,ECHEANCIER!$G$4,IF($A5=4,ECHEANCIER!$G$6,IF($A5=5,ECHEANCIER!$G$7,IF($A5=6,ECHEANCIER!$G$8,IF($A5=7,ECHEANCIER!$G$9,IF($A5=8,ECHEANCIER!$G$10,""))))))) -> 
A6: 3 | B6: 10 | C6: =IF($A6=1,ECHEANCIER!$D$3,IF($A6=3,ECHEANCIER!$D$3,IF($A9=4,ECHEANCIER!$D$4,IF($A9=5,ECHEANCIER!$D$4,IF($A9=6,ECHEANCIER!$D$4,IF($A9=7,ECHEANCIER!$D$4,IF($A9=8,ECHEANCIER!$D$4))))))) -> Vir recu | D6: =IF($A6="","",IF($A6=1,ECHEANCIER!$E$3,IF($A6=3,ECHEANCIER!$E$3,IF($A6=2,ECHEANCIER!$E$4,IF($A6=4,ECHEANCIER!$E$6,IF($A6=5,ECHEANCIER!$E$7,IF($A6=6,ECHEANCIER!$E$8,IF($A6=7,ECHEANCIER!$E$9,IF($A6=8,ECHEANCIER!$E$10,""""))))))))) -> ARCO | E6: =IF(A6="","",IF($A6=1,ECHEANCIER!$F$3,IF($A6=3,ECHEANCIER!$F$3,IF($A6=2,ECHEANCIER!$F$4,IF($A6=4,ECHEANCIER!$F$6,IF($A6=5,ECHEANCIER!$F$7,IF($A6=6,ECHEANCIER!$F$8,IF($A6=7,ECHEANCIER!$F$9,IF($A6=8,ECHEANCIER!$F$10))))))))) -> RETRAITE | F6: =IF($A6="","",IF($A6=1,ECHEANCIER!$G$3,IF($A6=3,ECHEANCIER!$G$5,IF($A6<>"RETRAITE","")))) -> 1200 | G6: =SUM(G5)+SUM(F6) -> 9450 | H6: =F6 -> 1200 | J6: =IF($A6="","",IF($A6=2,ECHEANCIER!$G$4,IF($A6=4,ECHEANCIER!$G$6,IF($A6=5,ECHEANCIER!$G$7,IF($A6=6,ECHEANCIER!$G$8,IF($A6=7,ECHEANCIER!$G$9,IF($A6=8,ECHEANCIER!$G$10,""))))))) -> 
A7: 2 | B7: 5 | C7: =IF($A7=1,ECHEANCIER!$D$3,IF($A7=3,ECHEANCIER!$D$3,IF($A10=4,ECHEANCIER!$D$4,IF($A10=5,ECHEANCIER!$D$4,IF($A10=6,ECHEANCIER!$D$4,IF($A10=7,ECHEANCIER!$D$4,IF($A10=8,ECHEANCIER!$D$4))))))) -> Prel | D7: =IF($A7="","",IF($A7=1,ECHEANCIER!$E$3,IF($A7=3,ECHEANCIER!$E$3,IF($A7=2,ECHEANCIER!$E$4,IF($A7=4,ECHEANCIER!$E$6,IF($A7=5,ECHEANCIER!$E$7,IF($A7=6,ECHEANCIER!$E$8,IF($A7=7,ECHEANCIER!$E$9,IF($A7=8,ECHEANCIER!$E$10,""""))))))))) -> UNEO | E7: =IF(A7="","",IF($A7=1,ECHEANCIER!$F$3,IF($A7=3,ECHEANCIER!$F$3,IF($A7=2,ECHEANCIER!$F$4,IF($A7=4,ECHEANCIER!$F$6,IF($A7=5,ECHEANCIER!$F$7,IF($A7=6,ECHEANCIER!$F$8,IF($A7=7,ECHEANCIER!$F$9,IF($A7=8,"ECHEANCIER!$E$10;"""))))))))) -> MUTUELLE | F7: =IF($A7="","",IF($A7=2,ECHEANCIER!$G$4,IF($A7=4,ECHEANCIER!$G$6,IF($A7=5,ECHEANCIER!$G$7,IF($A7=6,ECHEANCIER!$G$8,IF($A7=7,ECHEANCIER!$G$9,IF($A7=8,ECHEANCIER!$G$10,""))))))) -> -100 | G7: 9350 | H7: =IF($A7="","",IF($A7=1,ECHEANCIER!$G$3,IF($A7=3,ECHEANCIER!$G$5,IF($A7<>"RETRAITE","")))) ->  | J7: =F7 -> -100
A8: 4 | B8: 10 | C8: =IF($A8=1,ECHEANCIER!$D$3,IF($A8=3,ECHEANCIER!$D$3,IF($A11=4,ECHEANCIER!$D$4,IF($A11=5,ECHEANCIER!$D$4,IF($A11=6,ECHEANCIER!$D$4,IF($A11=7,ECHEANCIER!$D$4,IF($A11=8,ECHEANCIER!$D$4))))))) -> Prel | D8: =IF($A8="","",IF($A8=1,ECHEANCIER!$E$3,IF($A8=3,ECHEANCIER!$E$3,IF($A8=2,ECHEANCIER!$E$4,IF($A8=4,ECHEANCIER!$E$6,IF($A8=5,ECHEANCIER!$E$7,IF($A8=6,ECHEANCIER!$E$8,IF($A8=7,ECHEANCIER!$E$9,IF($A8=8,ECHEANCIER!$E$10,""""))))))))) -> A.L.M. | E8: =IF(A8="","",IF($A8=1,ECHEANCIER!$F$3,IF($A8=3,ECHEANCIER!$F$3,IF($A8=2,ECHEANCIER!$F$4,IF($A8=4,ECHEANCIER!$F$6,IF($A8=5,ECHEANCIER!$F$7,IF($A8=6,ECHEANCIER!$F$8,IF($A8=7,ECHEANCIER!$F$9,IF($A8=8,"ECHEANCIER!$E$10;"""))))))))) -> EAUX | F8: =IF($A8="","",IF($A8=2,ECHEANCIER!$G$4,IF($A8=4,ECHEANCIER!$G$6,IF($A8=5,ECHEANCIER!$G$7,IF($A8=6,ECHEANCIER!$G$8,IF($A8=7,ECHEANCIER!$G$9,IF($A8=8,ECHEANCIER!$G$10,""))))))) -> -40 | G8: 9310 | H8: =IF($A8="","",IF($A8=1,ECHEANCIER!$G$3,IF($A8=3,ECHEANCIER!$G$5,IF($A8<>"RETRAITE","")))) ->  | J8: =F8 -> -40
A9: 5 | B9: 15 | C9: =IF($A9=1,ECHEANCIER!$D$3,IF($A9=3,ECHEANCIER!$D$3,IF($A12=4,ECHEANCIER!$D$4,IF($A12=5,ECHEANCIER!$D$4,IF($A12=6,ECHEANCIER!$D$4,IF($A12=7,ECHEANCIER!$D$4,IF($A12=8,ECHEANCIER!$D$4))))))) -> Prel | D9: =IF($A9="","",IF($A9=1,ECHEANCIER!$E$3,IF($A9=3,ECHEANCIER!$E$3,IF($A9=2,ECHEANCIER!$E$4,IF($A9=4,ECHEANCIER!$E$6,IF($A9=5,ECHEANCIER!$E$7,IF($A9=6,ECHEANCIER!$E$8,IF($A9=7,ECHEANCIER!$E$9,IF($A9=8,ECHEANCIER!$E$10,""""))))))))) -> T.P. | E9: =IF(A9="","",IF($A9=1,ECHEANCIER!$F$3,IF($A9=3,ECHEANCIER!$F$3,IF($A9=2,ECHEANCIER!$F$4,IF($A9=4,ECHEANCIER!$F$6,IF($A9=5,ECHEANCIER!$F$7,IF($A9=6,ECHEANCIER!$F$8,IF($A9=7,ECHEANCIER!$F$9,IF($A9=8,"ECHEANCIER!$E$10;"""))))))))) -> T.HABI | F9: =IF($A9="","",IF($A9=2,ECHEANCIER!$G$4,IF($A9=4,ECHEANCIER!$G$6,IF($A9=5,ECHEANCIER!$G$7,IF($A9=6,ECHEANCIER!$G$8,IF($A9=7,ECHEANCIER!$G$9,IF($A9=8,ECHEANCIER!$G$10,""))))))) -> -100 | G9: 9210 | H9: =IF($A9="","",IF($A9=1,ECHEANCIER!$G$3,IF($A9=3,ECHEANCIER!$G$5,IF($A9<>"RETRAITE","")))) ->  | J9: -100
A10: 6 | B10: 15 | C10: =IF($A10=1,ECHEANCIER!$D$3,IF($A10=3,ECHEANCIER!$D$3,IF($A10=4,ECHEANCIER!$D$4,IF($A10=5,ECHEANCIER!$D$4,IF($A10=6,ECHEANCIER!$D$4,IF($A10=7,ECHEANCIER!$D$4,IF($A10=8,ECHEANCIER!$D$4))))))) -> Prel | D10: =IF($A10="","",IF($A10=1,ECHEANCIER!$E$3,IF($A10=3,ECHEANCIER!$E$3,IF($A10=2,ECHEANCIER!$E$4,IF($A10=4,ECHEANCIER!$E$6,IF($A10=5,ECHEANCIER!$E$7,IF($A10=6,ECHEANCIER!$E$8,IF($A10=7,ECHEANCIER!$E$9,IF($A10=8,ECHEANCIER!$E$10,""""))))))))) -> T.P. | E10: =IF(A10="","",IF($A10=1,ECHEANCIER!$F$3,IF($A10=3,ECHEANCIER!$F$3,IF($A10=2,ECHEANCIER!$F$4,IF($A10=4,ECHEANCIER!$F$6,IF($A10=5,ECHEANCIER!$F$7,IF($A10=6,ECHEANCIER!$F$8,IF($A10=7,ECHEANCIER!$F$9,IF($A10=8,"ECHEANCIER!$E$10;"""))))))))) -> T.FONC | F10: =IF($A10="","",IF($A10=2,ECHEANCIER!$G$4,IF($A10=4,ECHEANCIER!$G$6,IF($A10=5,ECHEANCIER!$G$7,IF($A10=6,ECHEANCIER!$G$8,IF($A10=7,ECHEANCIER!$G$9,IF($A10=8,ECHEANCIER!$G$10,""))))))) -> -110 | G10: 9100 | H10: =IF($A10="","",IF($A10=1,ECHEANCIER!$G$3,IF($A10=3,ECHEANCIER!$G$5,IF($A10<>"RETRAITE","")))) ->  | J10: -110
A11: 7 | B11: 15 | C11: =IF($A11=1,ECHEANCIER!$D$3,IF($A11=3,ECHEANCIER!$D$3,IF($A11=4,ECHEANCIER!$D$4,IF($A11=5,ECHEANCIER!$D$4,IF($A11=6,ECHEANCIER!$D$4,IF($A11=7,ECHEANCIER!$D$4,IF($A11=8,ECHEANCIER!$D$4))))))) -> Prel | D11: =IF($A11="","",IF($A11=1,ECHEANCIER!$E$3,IF($A11=3,ECHEANCIER!$E$3,IF($A11=2,ECHEANCIER!$E$4,IF($A11=4,ECHEANCIER!$E$6,IF($A11=5,ECHEANCIER!$E$7,IF($A11=6,ECHEANCIER!$E$8,IF($A11=7,ECHEANCIER!$E$9,IF($A11=8,ECHEANCIER!$E$10,""""))))))))) -> T.P. | E11: =IF(A11="","",IF($A11=1,ECHEANCIER!$F$3,IF($A11=3,ECHEANCIER!$F$3,IF($A11=2,ECHEANCIER!$F$4,IF($A11=4,ECHEANCIER!$F$6,IF($A11=5,ECHEANCIER!$F$7,IF($A11=6,ECHEANCIER!$F$8,IF($A11=7,ECHEANCIER!$F$9,IF($A11=8,"ECHEANCIER!$E$10;"""))))))))) -> IMP.REV | F11: =IF($A11="","",IF($A11=2,ECHEANCIER!$G$4,IF($A11=4,ECHEANCIER!$G$6,IF($A11=5,ECHEANCIER!$G$7,IF($A11=6,ECHEANCIER!$G$8,IF($A11=7,ECHEANCIER!$G$9,IF($A11=8,ECHEANCIER!$G$10,""))))))) -> -350 | G11: 8750 | H11: =IF($A11="","",IF($A11=1,ECHEANCIER!$G$3,IF($A11=3,ECHEANCIER!$G$5,IF($A11<>"RETRAITE","")))) ->  | J11: -350
A12: 8 | B12: 20 | C12: =IF($A12=1,ECHEANCIER!$D$3,IF($A12=3,ECHEANCIER!$D$3,IF($A12=4,ECHEANCIER!$D$4,IF($A12=5,ECHEANCIER!$D$4,IF($A12=6,ECHEANCIER!$D$4,IF($A12=7,ECHEANCIER!$D$4,IF($A12=8,ECHEANCIER!$D$4,IF($A12=9,ECHEANCIER!$D$11)))))))) -> Prel | D12: =IF($A12="","",IF($A12=1,ECHEANCIER!$E$3,IF($A12=3,ECHEANCIER!$E$3,IF($A12=2,ECHEANCIER!$E$4,IF($A12=4,ECHEANCIER!$E$6,IF($A12=5,ECHEANCIER!$E$7,IF($A12=6,ECHEANCIER!$E$8,IF($A12=7,ECHEANCIER!$E$9,IF($A12=8,ECHEANCIER!$E$10,IF($A12=9,ECHEANCIER!$E$11,"""")))))))))) -> ENGIE | E12: =IF(A12="","",IF($A12=1,ECHEANCIER!$F$3,IF($A12=3,ECHEANCIER!$F$3,IF($A12=2,ECHEANCIER!$F$4,IF($A12=4,ECHEANCIER!$F$6,IF($A12=5,ECHEANCIER!$F$7,IF($A12=6,ECHEANCIER!$F$8,IF($A12=7,ECHEANCIER!$F$9,IF($A12=8,ECHEANCIER!$F$10,""""))))))))) -> GAZ-ELEC | F12: =IF($A12="","",IF($A12=2,ECHEANCIER!$G$4,IF($A12=4,ECHEANCIER!$G$6,IF($A12=5,ECHEANCIER!$G$7,IF($A12=6,ECHEANCIER!$G$8,IF($A12=7,ECHEANCIER!$G$9,IF($A12=8,ECHEANCIER!$G$10,""))))))) -> -120 | G12: 8630 | H12: =IF($A12="","",IF($A12=1,ECHEANCIER!$G$3,IF($A12=3,ECHEANCIER!$G$5,IF($A12<>"RETRAITE","")))) ->  | J12: -120
A13: 9 | B13: =IF(A13="","",IF($A13=1,"1",IF($A13=2,"5",IF($A13=3,"10",IF($A13=4,"10",IF($A13=5,"15",IF($A13=6,"15",IF($A13=7,"15",IF($A13=8,"20",IF($A13=9,"27","")))))))))) -> 27 | C13: =IF($A13=1,ECHEANCIER!$D$3,IF($A13=3,ECHEANCIER!$D$3,IF($A13=4,ECHEANCIER!$D$4,IF($A13=5,ECHEANCIER!$D$4,IF($A13=6,ECHEANCIER!$D$4,IF($A13=7,ECHEANCIER!$D$4,IF($A13=8,ECHEANCIER!$D$4,IF($A13=9,ECHEANCIER!$D$11)))))))) -> Prel | D13: =IF($A13="","",IF($A13=1,ECHEANCIER!$E$3,IF($A13=3,ECHEANCIER!$E$3,IF($A13=2,ECHEANCIER!$E$4,IF($A13=4,ECHEANCIER!$E$6,IF($A13=5,ECHEANCIER!$E$7,IF($A13=6,ECHEANCIER!$E$8,IF($A13=7,ECHEANCIER!$E$9,IF($A13=8,ECHEANCIER!$E$10,IF($A13=9,ECHEANCIER!$E$11,"""")))))))))) -> ST CHRIST | E13: =+IF($A13=9,"ass.voit") -> ass.voit | F13: =IF(AND($A13=9,$E13="ASS.VOIT",OR($A$1="modele",$A$1="janvier",$A$1="avril",$A$1="juillet",$A$1="octobre")),ECHEANCIER!$G$11,"") -> -95 | G13: 8535 | J13: -95 | K13: =IF($E13="C. PORT LOYER",$F13,0) -> 0 | L13: =IF($E13="C. PORT CHARGES",$F13,0) -> 0 | M13: =IF($E13="MOUVEMENTS",$F13,0) -> 0
A14: 10 | B14: 25 | C14: Vir recu | D14: Carrefour | E14: RECETTES DIVERSES | F14: 40 | G14: 8575 | I14: =IF($E14="RECETTES DIVERSES",$F14,0) -> 40 | J14: =IF($E14="DEPENSES",$F14,0) -> 0 | K14: =IF($E14="C. PORT LOYER",$F14,0) -> 0 | L14: =IF($E14="C. PORT CHARGES",$F14,0) -> 0 | M14: =IF($E14="MOUVEMENTS",$F14,0) -> 0
A15: 11 | B15: 26 | C15: Cheque | D15: Lutz | E15: C. PORT CHARGES | F15: -135 | G15: 8440 | I15: =IF($E15="RECETTES DIVERSES",$F15,0) -> 0 | J15: 0 | K15: 0 | L15: -135 | M15: 0
A16: 12 | B16: 26 | C16: Vir recu | D16: Lutz | E16: C. PORT LOYER | F16: 650 | G16: 9090 | I16: =IF($E16="RECETTES DIVERSES",$F16,0) -> 0 | J16: 0 | K16: 650 | L16: 0 | M16: 0
A17: 13 | B17: 29 | C17: Retrait | D17: Poste | E17: DIVERS | F17: -500 | G17: 8590 | I17: 0 | J17: 0 | K17: 0 | L17: 0 | M17: =IF($E17="DIVERS",$F17,0) -> -500
A18: 14 | B18: 30 | C18: Carte | D18: Bontemps | E18: DEPENSES | F18: 90 | G18: =SUM(G17)+SUM(F18) -> 8680 | I18: 0 | J18: 90 | K18: 0 | L18: 0 | M18: 0
F19: =IF($A19="","",IF($A19=2,ECHEANCIER!$G$4,IF($A19=4,ECHEANCIER!$G$6,IF($A19=5,ECHEANCIER!$G$7,IF($A19=6,ECHEANCIER!$G$8,IF($A19=7,ECHEANCIER!$G$9,IF($A19=8,ECHEANCIER!$G$10,""))))))) ->  | G19: 8680 | I19: 0 | J19: =IF($A19="","",IF($A19=2,ECHEANCIER!$G$4,IF($A19=4,ECHEANCIER!$G$6,IF($A19=5,ECHEANCIER!$G$7,IF($A19=6,ECHEANCIER!$G$8,IF($A19=7,ECHEANCIER!$G$9,IF($A19=8,ECHEANCIER!$G$10,""))))))) ->  | K19: 0 | L19: 0 | M19: 0
G20: 8680 | I20: 0 | J20: =F20 -> 0 | K20: 0 | L20: 0 | M20: 0
A24: TOTAL MOIS | H24: =SUM(H5:H23) -> 1950 | I24: =SUM(I5:I23) -> 40 | J24: =SUM(J5:J23) -> -825 | K24: 650 | L24: -135 | M24: -500
A25: SOUS TOTAL | H25: =H24+H4 -> 1950 | I25: =I24+I4 -> 40 | J25: =J24+J4 -> -825 | K25: =K24+K4 -> 650 | L25: -135 | M25: =M24+M4 -> -500
A26: TOTAL | G26: =G20 -> 8680 | H26: =SUM(H25:I25) -> 1990 | J26: =J24+J4 -> -825 | K26: =SUM(K25:L25) -> 515 | M26: =M24+M4 -> -500

Sheet FEVRIER
A1: =MID(CELL("filename",A1),FIND("]",CELL("filename",A1))+1,32) -> FEVRIER
A2: N° SAISIE | B2: JOURS | C2: MODE | D2: TIERS | E2: CATEGORIE | F2: BANQUE POSTALE | H2: RECETTES | J2: DEPENSES | K2: C. PORT | M2: DIVERS
C3: PAIEMENT | F3: DEBIT/CREDIT | G3: SOLDE | H3: RETRAITE | I3: DIVERSES | K3: LOYER | L3: CHARGES
A4: REPORT | G4: =JANVIER!G26 -> 8680 | H4: =JANVIER!H25 -> 1950 | I4: =JANVIER!I25 -> 40 | J4: =JANVIER!J25 -> -825 | K4: =JANVIER!K25 -> 650 | L4: =JANVIER!L25 -> -135 | M4: =JANVIER!M25 -> -500
A5: 1 | B5: =IF(A5="","",IF($A5=1,"1",IF($A5=2,"5",IF($A5=3,"10",IF($A5=4,"10",IF($A5=5,"15",IF($A5=6,"15",IF($A5=7,"15",IF($A5=8,"20",""))))))))) -> 1 | C5: =IF($A5=1,ECHEANCIER!$D$3,IF($A5=3,ECHEANCIER!$D$3,IF($A8=4,ECHEANCIER!$D$4,IF($A8=5,ECHEANCIER!$D$4,IF($A8=6,ECHEANCIER!$D$4,IF($A8=7,ECHEANCIER!$D$4,IF($A8=8,ECHEANCIER!$D$4))))))) -> Vir recu | D5: =IF($A5="","",IF($A5=1,ECHEANCIER!$E$3,IF($A5=3,ECHEANCIER!$E$3,IF($A5=2,ECHEANCIER!$E$4,IF($A5=4,ECHEANCIER!$E$6,IF($A5=5,ECHEANCIER!$E$7,IF($A5=6,ECHEANCIER!$E$8,IF($A5=7,ECHEANCIER!$E$9,IF($A5=8,ECHEANCIER!$E$10,""""))))))))) -> ARCO | E5: =IF(A5="","",IF($A5=1,ECHEANCIER!$F$3,IF($A5=3,ECHEANCIER!$F$3,IF($A5=2,ECHEANCIER!$F$4,IF($A5=4,ECHEANCIER!$F$6,IF($A5=5,ECHEANCIER!$F$7,IF($A5=6,ECHEANCIER!$F$8,IF($A5=7,ECHEANCIER!$F$9,IF($A5=8,ECHEANCIER!$F$10,""""))))))))) -> RETRAITE | F5: =IF($A5="","",IF($A5=1,ECHEANCIER!$G$3,IF($A5=3,ECHEANCIER!$G$5,IF($A5<>"RETRAITE","")))) -> 750 | G5: =SUM(G4)+SUM(F5) -> 9430 | H5: =F5 -> 750 | J5: =IF($A5="","",IF($A5=2,ECHEANCIER!$G$4,IF($A5=4,ECHEANCIER!$G$6,IF($A5=5,ECHEANCIER!$G$7,IF($A5=6,ECHEANCIER!$G$8,IF($A5=7,ECHEANCIER!$G$9,IF($A5=8,ECHEANCIER!$G$10,""))))))) -> 
A6: 3 | B6: 10 | C6: =IF($A6=1,ECHEANCIER!$D$3,IF($A6=3,ECHEANCIER!$D$3,IF($A9=4,ECHEANCIER!$D$4,IF($A9=5,ECHEANCIER!$D$4,IF($A9=6,ECHEANCIER!$D$4,IF($A9=7,ECHEANCIER!$D$4,IF($A9=8,ECHEANCIER!$D$4))))))) -> Vir recu | D6: =IF($A6="","",IF($A6=1,ECHEANCIER!$E$3,IF($A6=3,ECHEANCIER!$E$3,IF($A6=2,ECHEANCIER!$E$4,IF($A6=4,ECHEANCIER!$E$6,IF($A6=5,ECHEANCIER!$E$7,IF($A6=6,ECHEANCIER!$E$8,IF($A6=7,ECHEANCIER!$E$9,IF($A6=8,ECHEANCIER!$E$10,""""))))))))) -> ARCO | E6: =IF(A6="","",IF($A6=1,ECHEANCIER!$F$3,IF($A6=3,ECHEANCIER!$F$3,IF($A6=2,ECHEANCIER!$F$4,IF($A6=4,ECHEANCIER!$F$6,IF($A6=5,ECHEANCIER!$F$7,IF($A6=6,ECHEANCIER!$F$8,IF($A6=7,ECHEANCIER!$F$9,IF($A6=8,ECHEANCIER!$F$10))))))))) -> RETRAITE | F6: =IF($A6="","",IF($A6=1,ECHEANCIER!$G$3,IF($A6=3,ECHEANCIER!$G$5,IF($A6<>"RETRAITE","")))) -> 1200 | G6: =SUM(G5)+SUM(F6) -> 10630 | H6: =F6 -> 1200 | J6: =IF($A6="","",IF($A6=2,ECHEANCIER!$G$4,IF($A6=4,ECHEANCIER!$G$6,IF($A6=5,ECHEANCIER!$G$7,IF($A6=6,ECHEANCIER!$G$8,IF($A6=7,ECHEANCIER!$G$9,IF($A6=8,ECHEANCIER!$G$10,""))))))) -> 
A7: 2 | B7: 5 | C7: =IF($A7=1,ECHEANCIER!$D$3,IF($A7=3,ECHEANCIER!$D$3,IF($A10=4,ECHEANCIER!$D$4,IF($A10=5,ECHEANCIER!$D$4,IF($A10=6,ECHEANCIER!$D$4,IF($A10=7,ECHEANCIER!$D$4,IF($A10=8,ECHEANCIER!$D$4))))))) -> Prel | D7: =IF($A7="","",IF($A7=1,ECHEANCIER!$E$3,IF($A7=3,ECHEANCIER!$E$3,IF($A7=2,ECHEANCIER!$E$4,IF($A7=4,ECHEANCIER!$E$6,IF($A7=5,ECHEANCIER!$E$7,IF($A7=6,ECHEANCIER!$E$8,IF($A7=7,ECHEANCIER!$E$9,IF($A7=8,ECHEANCIER!$E$10,""""))))))))) -> UNEO | E7: =IF(A7="","",IF($A7=1,ECHEANCIER!$F$3,IF($A7=3,ECHEANCIER!$F$3,IF($A7=2,ECHEANCIER!$F$4,IF($A7=4,ECHEANCIER!$F$6,IF($A7=5,ECHEANCIER!$F$7,IF($A7=6,ECHEANCIER!$F$8,IF($A7=7,ECHEANCIER!$F$9,IF($A7=8,"ECHEANCIER!$E$10;"""))))))))) -> MUTUELLE | F7: =IF($A7="","",IF($A7=2,ECHEANCIER!$G$4,IF($A7=4,ECHEANCIER!$G$6,IF($A7=5,ECHEANCIER!$G$7,IF($A7=6,ECHEANCIER!$G$8,IF($A7=7,ECHEANCIER!$G$9,IF($A7=8,ECHEANCIER!$G$10,""))))))) -> -100 | G7: 10530 | H7: =IF($A7="","",IF($A7=1,ECHEANCIER!$G$3,IF($A7=3,ECHEANCIER!$G$5,IF($A7<>"RETRAITE","")))) ->  | J7: =F7 -> -100
A8: 4 | B8: 10 | C8: =IF($A8=1,ECHEANCIER!$D$3,IF($A8=3,ECHEANCIER!$D$3,IF($A11=4,ECHEANCIER!$D$4,IF($A11=5,ECHEANCIER!$D$4,IF($A11=6,ECHEANCIER!$D$4,IF($A11=7,ECHEANCIER!$D$4,IF($A11=8,ECHEANCIER!$D$4))))))) -> Prel | D8: =IF($A8="","",IF($A8=1,ECHEANCIER!$E$3,IF($A8=3,ECHEANCIER!$E$3,IF($A8=2,ECHEANCIER!$E$4,IF($A8=4,ECHEANCIER!$E$6,IF($A8=5,ECHEANCIER!$E$7,IF($A8=6,ECHEANCIER!$E$8,IF($A8=7,ECHEANCIER!$E$9,IF($A8=8,ECHEANCIER!$E$10,""""))))))))) -> A.L.M. | E8: =IF(A8="","",IF($A8=1,ECHEANCIER!$F$3,IF($A8=3,ECHEANCIER!$F$3,IF($A8=2,ECHEANCIER!$F$4,IF($A8=4,ECHEANCIER!$F$6,IF($A8=5,ECHEANCIER!$F$7,IF($A8=6,ECHEANCIER!$F$8,IF($A8=7,ECHEANCIER!$F$9,IF($A8=8,"ECHEANCIER!$E$10;"""))))))))) -> EAUX | F8: =IF($A8="","",IF($A8=2,ECHEANCIER!$G$4,IF($A8=4,ECHEANCIER!$G$6,IF($A8=5,ECHEANCIER!$G$7,IF($A8=6,ECHEANCIER!$G$8,IF($A8=7,ECHEANCIER!$G$9,IF($A8=8,ECHEANCIER!$G$10,""))))))) -> -40 | G8: 10490 | H8: =IF($A8="","",IF($A8=1,ECHEANCIER!$G$3,IF($A8=3,ECHEANCIER!$G$5,IF($A8<>"RETRAITE","")))) ->  | J8: =F8 -> -40
A9: 5 | B9: 15 | C9: =IF($A9=1,ECHEANCIER!$D$3,IF($A9=3,ECHEANCIER!$D$3,IF($A12=4,ECHEANCIER!$D$4,IF($A12=5,ECHEANCIER!$D$4,IF($A12=6,ECHEANCIER!$D$4,IF($A12=7,ECHEANCIER!$D$4,IF($A12=8,ECHEANCIER!$D$4))))))) -> Prel | D9: =IF($A9="","",IF($A9=1,ECHEANCIER!$E$3,IF($A9=3,ECHEANCIER!$E$3,IF($A9=2,ECHEANCIER!$E$4,IF($A9=4,ECHEANCIER!$E$6,IF($A9=5,ECHEANCIER!$E$7,IF($A9=6,ECHEANCIER!$E$8,IF($A9=7,ECHEANCIER!$E$9,IF($A9=8,ECHEANCIER!$E$10,""""))))))))) -> T.P. | E9: =IF(A9="","",IF($A9=1,ECHEANCIER!$F$3,IF($A9=3,ECHEANCIER!$F$3,IF($A9=2,ECHEANCIER!$F$4,IF($A9=4,ECHEANCIER!$F$6,IF($A9=5,ECHEANCIER!$F$7,IF($A9=6,ECHEANCIER!$F$8,IF($A9=7,ECHEANCIER!$F$9,IF($A9=8,"ECHEANCIER!$E$10;"""))))))))) -> T.HABI | F9: =IF($A9="","",IF($A9=2,ECHEANCIER!$G$4,IF($A9=4,ECHEANCIER!$G$6,IF($A9=5,ECHEANCIER!$G$7,IF($A9=6,ECHEANCIER!$G$8,IF($A9=7,ECHEANCIER!$G$9,IF($A9=8,ECHEANCIER!$G$10,""))))))) -> -100 | G9: 10390 | H9: =IF($A9="","",IF($A9=1,ECHEANCIER!$G$3,IF($A9=3,ECHEANCIER!$G$5,IF($A9<>"RETRAITE","")))) ->  | J9: -100
A10: 6 | B10: 15 | C10: =IF($A10=1,ECHEANCIER!$D$3,IF($A10=3,ECHEANCIER!$D$3,IF($A10=4,ECHEANCIER!$D$4,IF($A10=5,ECHEANCIER!$D$4,IF($A10=6,ECHEANCIER!$D$4,IF($A10=7,ECHEANCIER!$D$4,IF($A10=8,ECHEANCIER!$D$4))))))) -> Prel | D10: =IF($A10="","",IF($A10=1,ECHEANCIER!$E$3,IF($A10=3,ECHEANCIER!$E$3,IF($A10=2,ECHEANCIER!$E$4,IF($A10=4,ECHEANCIER!$E$6,IF($A10=5,ECHEANCIER!$E$7,IF($A10=6,ECHEANCIER!$E$8,IF($A10=7,ECHEANCIER!$E$9,IF($A10=8,ECHEANCIER!$E$10,""""))))))))) -> T.P. | E10: =IF(A10="","",IF($A10=1,ECHEANCIER!$F$3,IF($A10=3,ECHEANCIER!$F$3,IF($A10=2,ECHEANCIER!$F$4,IF($A10=4,ECHEANCIER!$F$6,IF($A10=5,ECHEANCIER!$F$7,IF($A10=6,ECHEANCIER!$F$8,IF($A10=7,ECHEANCIER!$F$9,IF($A10=8,"ECHEANCIER!$E$10;"""))))))))) -> T.FONC | F10: =IF($A10="","",IF($A10=2,ECHEANCIER!$G$4,IF($A10=4,ECHEANCIER!$G$6,IF($A10=5,ECHEANCIER!$G$7,IF($A10=6,ECHEANCIER!$G$8,IF($A10=7,ECHEANCIER!$G$9,IF($A10=8,ECHEANCIER!$G$10,""))))))) -> -110 | G10: 10280 | H10: =IF($A10="","",IF($A10=1,ECHEANCIER!$G$3,IF($A10=3,ECHEANCIER!$G$5,IF($A10<>"RETRAITE","")))) ->  | J10: -110
A11: 7 | B11: 15 | C11: =IF($A11=1,ECHEANCIER!$D$3,IF($A11=3,ECHEANCIER!$D$3,IF($A11=4,ECHEANCIER!$D$4,IF($A11=5,ECHEANCIER!$D$4,IF($A11=6,ECHEANCIER!$D$4,IF($A11=7,ECHEANCIER!$D$4,IF($A11=8,ECHEANCIER!$D$4))))))) -> Prel | D11: =IF($A11="","",IF($A11=1,ECHEANCIER!$E$3,IF($A11=3,ECHEANCIER!$E$3,IF($A11=2,ECHEANCIER!$E$4,IF($A11=4,ECHEANCIER!$E$6,IF($A11=5,ECHEANCIER!$E$7,IF($A11=6,ECHEANCIER!$E$8,IF($A11=7,ECHEANCIER!$E$9,IF($A11=8,ECHEANCIER!$E$10,""""))))))))) -> T.P. | E11: =IF(A11="","",IF($A11=1,ECHEANCIER!$F$3,IF($A11=3,ECHEANCIER!$F$3,IF($A11=2,ECHEANCIER!$F$4,IF($A11=4,ECHEANCIER!$F$6,IF($A11=5,ECHEANCIER!$F$7,IF($A11=6,ECHEANCIER!$F$8,IF($A11=7,ECHEANCIER!$F$9,IF($A11=8,"ECHEANCIER!$E$10;"""))))))))) -> IMP.REV | F11: =IF($A11="","",IF($A11=2,ECHEANCIER!$G$4,IF($A11=4,ECHEANCIER!$G$6,IF($A11=5,ECHEANCIER!$G$7,IF($A11=6,ECHEANCIER!$G$8,IF($A11=7,ECHEANCIER!$G$9,IF($A11=8,ECHEANCIER!$G$10,""))))))) -> -350 | G11: 9930 | H11: =IF($A11="","",IF($A11=1,ECHEANCIER!$G$3,IF($A11=3,ECHEANCIER!$G$5,IF($A11<>"RETRAITE","")))) ->  | J11: -350
A12: 8 | B12: 20 | C12: =IF($A12=1,ECHEANCIER!$D$3,IF($A12=3,ECHEANCIER!$D$3,IF($A12=4,ECHEANCIER!$D$4,IF($A12=5,ECHEANCIER!$D$4,IF($A12=6,ECHEANCIER!$D$4,IF($A12=7,ECHEANCIER!$D$4,IF($A12=8,ECHEANCIER!$D$4,IF($A12=9,ECHEANCIER!$D$11)))))))) -> Prel | D12: =IF($A12="","",IF($A12=1,ECHEANCIER!$E$3,IF($A12=3,ECHEANCIER!$E$3,IF($A12=2,ECHEANCIER!$E$4,IF($A12=4,ECHEANCIER!$E$6,IF($A12=5,ECHEANCIER!$E$7,IF($A12=6,ECHEANCIER!$E$8,IF($A12=7,ECHEANCIER!$E$9,IF($A12=8,ECHEANCIER!$E$10,IF($A12=9,ECHEANCIER!$E$11,"""")))))))))) -> ENGIE | E12: =IF(A12="","",IF($A12=1,ECHEANCIER!$F$3,IF($A12=3,ECHEANCIER!$F$3,IF($A12=2,ECHEANCIER!$F$4,IF($A12=4,ECHEANCIER!$F$6,IF($A12=5,ECHEANCIER!$F$7,IF($A12=6,ECHEANCIER!$F$8,IF($A12=7,ECHEANCIER!$F$9,IF($A12=8,ECHEANCIER!$F$10,""""))))))))) -> GAZ-ELEC | F12: =IF($A12="","",IF($A12=2,ECHEANCIER!$G$4,IF($A12=4,ECHEANCIER!$G$6,IF($A12=5,ECHEANCIER!$G$7,IF($A12=6,ECHEANCIER!$G$8,IF($A12=7,ECHEANCIER!$G$9,IF($A12=8,ECHEANCIER!$G$10,""))))))) -> -120 | G12: 9810 | H12: =IF($A12="","",IF($A12=1,ECHEANCIER!$G$3,IF($A12=3,ECHEANCIER!$G$5,IF($A12<>"RETRAITE","")))) ->  | J12: -120
A13: 9 | B13: =IF(A13="","",IF($A13=1,"1",IF($A13=2,"5",IF($A13=3,"10",IF($A13=4,"10",IF($A13=5,"15",IF($A13=6,"15",IF($A13=7,"15",IF($A13=8,"20",IF($A13=9,"27","")))))))))) -> 27 | C13: =IF($A13=1,ECHEANCIER!$D$3,IF($A13=3,ECHEANCIER!$D$3,IF($A13=4,ECHEANCIER!$D$4,IF($A13=5,ECHEANCIER!$D$4,IF($A13=6,ECHEANCIER!$D$4,IF($A13=7,ECHEANCIER!$D$4,IF($A13=8,ECHEANCIER!$D$4,IF($A13=9,ECHEANCIER!$D$11)))))))) -> Prel | D13: =IF($A13="","",IF($A13=1,ECHEANCIER!$E$3,IF($A13=3,ECHEANCIER!$E$3,IF($A13=2,ECHEANCIER!$E$4,IF($A13=4,ECHEANCIER!$E$6,IF($A13=5,ECHEANCIER!$E$7,IF($A13=6,ECHEANCIER!$E$8,IF($A13=7,ECHEANCIER!$E$9,IF($A13=8,ECHEANCIER!$E$10,IF($A13=9,ECHEANCIER!$E$11,"""")))))))))) -> ST CHRIST | E13: =+IF($A13=9,"ass.voit") -> ass.voit | F13: =IF(AND($A13=9,$E13="ASS.VOIT",OR($A$1="janvier",$A$1="avril",$A$1="juillet",$A$1="octobre")),ECHEANCIER!$G$11,"") ->  | G13: 9810 | K13: =IF($E13="C. PORT LOYER",$F13,0) -> 0 | L13: =IF($E13="C. PORT CHARGES",$F13,0) -> 0 | M13: =IF($E13="MOUVEMENTS",$F13,0) -> 0
G14: 9810 | I14: =IF($E14="RECETTES DIVERSES",$F14,0) -> 0 | J14: =IF($E14="DEPENSES",$F14,0) -> 0 | K14: =IF($E14="C. PORT LOYER",$F14,0) -> 0 | L14: =IF($E14="C. PORT CHARGES",$F14,0) -> 0 | M14: =IF($E14="MOUVEMENTS",$F14,0) -> 0
G15: 9810 | I15: =IF($E15="RECETTES DIVERSES",$F15,0) -> 0 | J15: 0 | K15: 0 | L15: 0 | M15: 0
G16: 9810 | I16: =IF($E16="RECETTES DIVERSES",$F16,0) -> 0 | J16: 0 | K16: 0 | L16: 0 | M16: 0
G17: 9810 | I17: 0 | J17: 0 | K17: 0 | L17: 0 | M17: =IF($E17="DIVERS",$F17,0) -> 0
G18: =SUM(G17)+SUM(F18) -> 9810 | I18: 0 | J18: 0 | K18: 0 | L18: 0 | M18: 0
F19: =IF($A19="","",IF($A19=2,ECHEANCIER!$G$4,IF($A19=4,ECHEANCIER!$G$6,IF($A19=5,ECHEANCIER!$G$7,IF($A19=6,ECHEANCIER!$G$8,IF($A19=7,ECHEANCIER!$G$9,IF($A19=8,ECHEANCIER!$G$10,""))))))) ->  | G19: 9810 | I19: 0 | J19: =IF($A19="","",IF($A19=2,ECHEANCIER!$G$4,IF($A19=4,ECHEANCIER!$G$6,IF($A19=5,ECHEANCIER!$G$7,IF($A19=6,ECHEANCIER!$G$8,IF($A19=7,ECHEANCIER!$G$9,IF($A19=8,ECHEANCIER!$G$10,""))))))) ->  | K19: 0 | L19: 0 | M19: 0
G20: 9810 | I20: 0 | J20: =F20 -> 0 | K20: 0 | L20: 0 | M20: 0
A24: TOTAL MOIS | H24: =SUM(H5:H23) -> 1950 | I24: =SUM(I5:I23) -> 0 | J24: =SUM(J5:J23) -> -820 | K24: 0 | L24: 0 | M24: 0
A25: SOUS TOTAL | H25: =H24+H4 -> 3900 | I25: =I24+I4 -> 40 | J25: =J24+J4 -> -1645 | K25: =K24+K4 -> 650 | L25: -135 | M25: =M24+M4 -> -500
A26: TOTAL | G26: =G20 -> 9810 | H26: =SUM(H25:I25) -> 3940 | J26: =J24+J4 -> -1645 | K26: =SUM(K25:L25) -> 515 | M26: =M24+M4 -> -500

Sheet MARS
A1: =MID(CELL("filename",A1),FIND("]",CELL("filename",A1))+1,32) -> MARS
A2: N° SAISIE | B2: JOURS | C2: MODE | D2: TIERS | E2: CATEGORIE | F2: BANQUE POSTALE | H2: RECETTES | J2: DEPENSES | K2: C. PORT | M2: DIVERS
C3: PAIEMENT | F3: DEBIT/CREDIT | G3: SOLDE | H3: RETRAITE | I3: DIVERSES | K3: LOYER | L3: CHARGES
A4: REPORT | G4: =FEVRIER!G26 -> 9810 | H4: =FEVRIER!H25 -> 3900 | I4: =FEVRIER!I25 -> 40 | J4: =FEVRIER!J25 -> -1645 | K4: =FEVRIER!K25 -> 650 | L4: =FEVRIER!L25 -> -135 | M4: =FEVRIER!M25 -> -500
A5: 1 | B5: =IF(A5="","",IF($A5=1,"1",IF($A5=2,"5",IF($A5=3,"10",IF($A5=4,"10",IF($A5=5,"15",IF($A5=6,"15",IF($A5=7,"15",IF($A5=8,"20",""))))))))) -> 1 | C5: =IF($A5=1,ECHEANCIER!$D$3,IF($A5=3,ECHEANCIER!$D$3,IF($A8=4,ECHEANCIER!$D$4,IF($A8=5,ECHEANCIER!$D$4,IF($A8=6,ECHEANCIER!$D$4,IF($A8=7,ECHEANCIER!$D$4,IF($A8=8,ECHEANCIER!$D$4))))))) -> Vir recu | D5: =IF($A5="","",IF($A5=1,ECHEANCIER!$E$3,IF($A5=3,ECHEANCIER!$E$3,IF($A5=2,ECHEANCIER!$E$4,IF($A5=4,ECHEANCIER!$E$6,IF($A5=5,ECHEANCIER!$E$7,IF($A5=6,ECHEANCIER!$E$8,IF($A5=7,ECHEANCIER!$E$9,IF($A5=8,ECHEANCIER!$E$10,""""))))))))) -> ARCO | E5: =IF(A5="","",IF($A5=1,ECHEANCIER!$F$3,IF($A5=3,ECHEANCIER!$F$3,IF($A5=2,ECHEANCIER!$F$4,IF($A5=4,ECHEANCIER!$F$6,IF($A5=5,ECHEANCIER!$F$7,IF($A5=6,ECHEANCIER!$F$8,IF($A5=7,ECHEANCIER!$F$9,IF($A5=8,ECHEANCIER!$F$10,""""))))))))) -> RETRAITE | F5: =IF($A5="","",IF($A5=1,ECHEANCIER!$G$3,IF($A5=3,ECHEANCIER!$G$5,IF($A5<>"RETRAITE","")))) -> 750 | G5: =SUM(G4)+SUM(F5) -> 10560 | H5: =F5 -> 750 | J5: =IF($A5="","",IF($A5=2,ECHEANCIER!$G$4,IF($A5=4,ECHEANCIER!$G$6,IF($A5=5,ECHEANCIER!$G$7,IF($A5=6,ECHEANCIER!$G$8,IF($A5=7,ECHEANCIER!$G$9,IF($A5=8,ECHEANCIER!$G$10,""))))))) -> 
A6: 3 | B6: 10 | C6: =IF($A6=1,ECHEANCIER!$D$3,IF($A6=3,ECHEANCIER!$D$3,IF($A9=4,ECHEANCIER!$D$4,IF($A9=5,ECHEANCIER!$D$4,IF($A9=6,ECHEANCIER!$D$4,IF($A9=7,ECHEANCIER!$D$4,IF($A9=8,ECHEANCIER!$D$4))))))) -> Vir recu | D6: =IF($A6="","",IF($A6=1,ECHEANCIER!$E$3,IF($A6=3,ECHEANCIER!$E$3,IF($A6=2,ECHEANCIER!$E$4,IF($A6=4,ECHEANCIER!$E$6,IF($A6=5,ECHEANCIER!$E$7,IF($A6=6,ECHEANCIER!$E$8,IF($A6=7,ECHEANCIER!$E$9,IF($A6=8,ECHEANCIER!$E$10,""""))))))))) -> ARCO | E6: =IF(A6="","",IF($A6=1,ECHEANCIER!$F$3,IF($A6=3,ECHEANCIER!$F$3,IF($A6=2,ECHEANCIER!$F$4,IF($A6=4,ECHEANCIER!$F$6,IF($A6=5,ECHEANCIER!$F$7,IF($A6=6,ECHEANCIER!$F$8,IF($A6=7,ECHEANCIER!$F$9,IF($A6=8,ECHEANCIER!$F$10))))))))) -> RETRAITE | F6: =IF($A6="","",IF($A6=1,ECHEANCIER!$G$3,IF($A6=3,ECHEANCIER!$G$5,IF($A6<>"RETRAITE","")))) -> 1200 | G6: =SUM(G5)+SUM(F6) -> 11760 | H6: =F6 -> 1200 | J6: =IF($A6="","",IF($A6=2,ECHEANCIER!$G$4,IF($A6=4,ECHEANCIER!$G$6,IF($A6=5,ECHEANCIER!$G$7,IF($A6=6,ECHEANCIER!$G$8,IF($A6=7,ECHEANCIER!$G$9,IF($A6=8,ECHEANCIER!$G$10,""))))))) -> 
A7: 2 | B7: 5 | C7: =IF($A7=1,ECHEANCIER!$D$3,IF($A7=3,ECHEANCIER!$D$3,IF($A10=4,ECHEANCIER!$D$4,IF($A10=5,ECHEANCIER!$D$4,IF($A10=6,ECHEANCIER!$D$4,IF($A10=7,ECHEANCIER!$D$4,IF($A10=8,ECHEANCIER!$D$4))))))) -> Prel | D7: =IF($A7="","",IF($A7=1,ECHEANCIER!$E$3,IF($A7=3,ECHEANCIER!$E$3,IF($A7=2,ECHEANCIER!$E$4,IF($A7=4,ECHEANCIER!$E$6,IF($A7=5,ECHEANCIER!$E$7,IF($A7=6,ECHEANCIER!$E$8,IF($A7=7,ECHEANCIER!$E$9,IF($A7=8,ECHEANCIER!$E$10,""""))))))))) -> UNEO | E7: =IF(A7="","",IF($A7=1,ECHEANCIER!$F$3,IF($A7=3,ECHEANCIER!$F$3,IF($A7=2,ECHEANCIER!$F$4,IF($A7=4,ECHEANCIER!$F$6,IF($A7=5,ECHEANCIER!$F$7,IF($A7=6,ECHEANCIER!$F$8,IF($A7=7,ECHEANCIER!$F$9,IF($A7=8,"ECHEANCIER!$E$10;"""))))))))) -> MUTUELLE | F7: =IF($A7="","",IF($A7=2,ECHEANCIER!$G$4,IF($A7=4,ECHEANCIER!$G$6,IF($A7=5,ECHEANCIER!$G$7,IF($A7=6,ECHEANCIER!$G$8,IF($A7=7,ECHEANCIER!$G$9,IF($A7=8,ECHEANCIER!$G$10,""))))))) -> -100 | G7: 11660 | H7: =IF($A7="","",IF($A7=1,ECHEANCIER!$G$3,IF($A7=3,ECHEANCIER!$G$5,IF($A7<>"RETRAITE","")))) ->  | J7: =F7 -> -100
A8: 4 | B8: 10 | C8: =IF($A8=1,ECHEANCIER!$D$3,IF($A8=3,ECHEANCIER!$D$3,IF($A11=4,ECHEANCIER!$D$4,IF($A11=5,ECHEANCIER!$D$4,IF($A11=6,ECHEANCIER!$D$4,IF($A11=7,ECHEANCIER!$D$4,IF($A11=8,ECHEANCIER!$D$4))))))) -> Prel | D8: =IF($A8="","",IF($A8=1,ECHEANCIER!$E$3,IF($A8=3,ECHEANCIER!$E$3,IF($A8=2,ECHEANCIER!$E$4,IF($A8=4,ECHEANCIER!$E$6,IF($A8=5,ECHEANCIER!$E$7,IF($A8=6,ECHEANCIER!$E$8,IF($A8=7,ECHEANCIER!$E$9,IF($A8=8,ECHEANCIER!$E$10,""""))))))))) -> A.L.M. | E8: =IF(A8="","",IF($A8=1,ECHEANCIER!$F$3,IF($A8=3,ECHEANCIER!$F$3,IF($A8=2,ECHEANCIER!$F$4,IF($A8=4,ECHEANCIER!$F$6,IF($A8=5,ECHEANCIER!$F$7,IF($A8=6,ECHEANCIER!$F$8,IF($A8=7,ECHEANCIER!$F$9,IF($A8=8,"ECHEANCIER!$E$10;"""))))))))) -> EAUX | F8: =IF($A8="","",IF($A8=2,ECHEANCIER!$G$4,IF($A8=4,ECHEANCIER!$G$6,IF($A8=5,ECHEANCIER!$G$7,IF($A8=6,ECHEANCIER!$G$8,IF($A8=7,ECHEANCIER!$G$9,IF($A8=8,ECHEANCIER!$G$10,""))))))) -> -40 | G8: 11620 | H8: =IF($A8="","",IF($A8=1,ECHEANCIER!$G$3,IF($A8=3,ECHEANCIER!$G$5,IF($A8<>"RETRAITE","")))) ->  | J8: =F8 -> -40
A9: 5 | B9: 15 | C9: =IF($A9=1,ECHEANCIER!$D$3,IF($A9=3,ECHEANCIER!$D$3,IF($A12=4,ECHEANCIER!$D$4,IF($A12=5,ECHEANCIER!$D$4,IF($A12=6,ECHEANCIER!$D$4,IF($A12=7,ECHEANCIER!$D$4,IF($A12=8,ECHEANCIER!$D$4))))))) -> Prel | D9: =IF($A9="","",IF($A9=1,ECHEANCIER!$E$3,IF($A9=3,ECHEANCIER!$E$3,IF($A9=2,ECHEANCIER!$E$4,IF($A9=4,ECHEANCIER!$E$6,IF($A9=5,ECHEANCIER!$E$7,IF($A9=6,ECHEANCIER!$E$8,IF($A9=7,ECHEANCIER!$E$9,IF($A9=8,ECHEANCIER!$E$10,""""))))))))) -> T.P. | E9: =IF(A9="","",IF($A9=1,ECHEANCIER!$F$3,IF($A9=3,ECHEANCIER!$F$3,IF($A9=2,ECHEANCIER!$F$4,IF($A9=4,ECHEANCIER!$F$6,IF($A9=5,ECHEANCIER!$F$7,IF($A9=6,ECHEANCIER!$F$8,IF($A9=7,ECHEANCIER!$F$9,IF($A9=8,"ECHEANCIER!$E$10;"""))))))))) -> T.HABI | F9: =IF($A9="","",IF($A9=2,ECHEANCIER!$G$4,IF($A9=4,ECHEANCIER!$G$6,IF($A9=5,ECHEANCIER!$G$7,IF($A9=6,ECHEANCIER!$G$8,IF($A9=7,ECHEANCIER!$G$9,IF($A9=8,ECHEANCIER!$G$10,""))))))) -> -100 | G9: 11520 | H9: =IF($A9="","",IF($A9=1,ECHEANCIER!$G$3,IF($A9=3,ECHEANCIER!$G$5,IF($A9<>"RETRAITE","")))) ->  | J9: -100
A10: 6 | B10: 15 | C10: =IF($A10=1,ECHEANCIER!$D$3,IF($A10=3,ECHEANCIER!$D$3,IF($A10=4,ECHEANCIER!$D$4,IF($A10=5,ECHEANCIER!$D$4,IF($A10=6,ECHEANCIER!$D$4,IF($A10=7,ECHEANCIER!$D$4,IF($A10=8,ECHEANCIER!$D$4))))))) -> Prel | D10: =IF($A10="","",IF($A10=1,ECHEANCIER!$E$3,IF($A10=3,ECHEANCIER!$E$3,IF($A10=2,ECHEANCIER!$E$4,IF($A10=4,ECHEANCIER!$E$6,IF($A10=5,ECHEANCIER!$E$7,IF($A10=6,ECHEANCIER!$E$8,IF($A10=7,ECHEANCIER!$E$9,IF($A10=8,ECHEANCIER!$E$10,""""))))))))) -> T.P. | E10: =IF(A10="","",IF($A10=1,ECHEANCIER!$F$3,IF($A10=3,ECHEANCIER!$F$3,IF($A10=2,ECHEANCIER!$F$4,IF($A10=4,ECHEANCIER!$F$6,IF($A10=5,ECHEANCIER!$F$7,IF($A10=6,ECHEANCIER!$F$8,IF($A10=7,ECHEANCIER!$F$9,IF($A10=8,"ECHEANCIER!$E$10;"""))))))))) -> T.FONC | F10: =IF($A10="","",IF($A10=2,ECHEANCIER!$G$4,IF($A10=4,ECHEANCIER!$G$6,IF($A10=5,ECHEANCIER!$G$7,IF($A10=6,ECHEANCIER!$G$8,IF($A10=7,ECHEANCIER!$G$9,IF($A10=8,ECHEANCIER!$G$10,""))))))) -> -110 | G10: 11410 | H10: =IF($A10="","",IF($A10=1,ECHEANCIER!$G$3,IF($A10=3,ECHEANCIER!$G$5,IF($A10<>"RETRAITE","")))) ->  | J10: -110
A11: 7 | B11: 15 | C11: =IF($A11=1,ECHEANCIER!$D$3,IF($A11=3,ECHEANCIER!$D$3,IF($A11=4,ECHEANCIER!$D$4,IF($A11=5,ECHEANCIER!$D$4,IF($A11=6,ECHEANCIER!$D$4,IF($A11=7,ECHEANCIER!$D$4,IF($A11=8,ECHEANCIER!$D$4))))))) -> Prel | D11: =IF($A11="","",IF($A11=1,ECHEANCIER!$E$3,IF($A11=3,ECHEANCIER!$E$3,IF($A11=2,ECHEANCIER!$E$4,IF($A11=4,ECHEANCIER!$E$6,IF($A11=5,ECHEANCIER!$E$7,IF($A11=6,ECHEANCIER!$E$8,IF($A11=7,ECHEANCIER!$E$9,IF($A11=8,ECHEANCIER!$E$10,""""))))))))) -> T.P. | E11: =IF(A11="","",IF($A11=1,ECHEANCIER!$F$3,IF($A11=3,ECHEANCIER!$F$3,IF($A11=2,ECHEANCIER!$F$4,IF($A11=4,ECHEANCIER!$F$6,IF($A11=5,ECHEANCIER!$F$7,IF($A11=6,ECHEANCIER!$F$8,IF($A11=7,ECHEANCIER!$F$9,IF($A11=8,"ECHEANCIER!$E$10;"""))))))))) -> IMP.REV | F11: =IF($A11="","",IF($A11=2,ECHEANCIER!$G$4,IF($A11=4,ECHEANCIER!$G$6,IF($A11=5,ECHEANCIER!$G$7,IF($A11=6,ECHEANCIER!$G$8,IF($A11=7,ECHEANCIER!$G$9,IF($A11=8,ECHEANCIER!$G$10,""))))))) -> -350 | G11: 11060 | H11: =IF($A11="","",IF($A11=1,ECHEANCIER!$G$3,IF($A11=3,ECHEANCIER!$G$5,IF($A11<>"RETRAITE","")))) ->  | J11: -350
A12: 8 | B12: 20 | C12: =IF($A12=1,ECHEANCIER!$D$3,IF($A12=3,ECHEANCIER!$D$3,IF($A12=4,ECHEANCIER!$D$4,IF($A12=5,ECHEANCIER!$D$4,IF($A12=6,ECHEANCIER!$D$4,IF($A12=7,ECHEANCIER!$D$4,IF($A12=8,ECHEANCIER!$D$4,IF($A12=9,ECHEANCIER!$D$11)))))))) -> Prel | D12: =IF($A12="","",IF($A12=1,ECHEANCIER!$E$3,IF($A12=3,ECHEANCIER!$E$3,IF($A12=2,ECHEANCIER!$E$4,IF($A12=4,ECHEANCIER!$E$6,IF($A12=5,ECHEANCIER!$E$7,IF($A12=6,ECHEANCIER!$E$8,IF($A12=7,ECHEANCIER!$E$9,IF($A12=8,ECHEANCIER!$E$10,IF($A12=9,ECHEANCIER!$E$11,"""")))))))))) -> ENGIE | E12: =IF(A12="","",IF($A12=1,ECHEANCIER!$F$3,IF($A12=3,ECHEANCIER!$F$3,IF($A12=2,ECHEANCIER!$F$4,IF($A12=4,ECHEANCIER!$F$6,IF($A12=5,ECHEANCIER!$F$7,IF($A12=6,ECHEANCIER!$F$8,IF($A12=7,ECHEANCIER!$F$9,IF($A12=8,ECHEANCIER!$F$10,""""))))))))) -> GAZ-ELEC | F12: =IF($A12="","",IF($A12=2,ECHEANCIER!$G$4,IF($A12=4,ECHEANCIER!$G$6,IF($A12=5,ECHEANCIER!$G$7,IF($A12=6,ECHEANCIER!$G$8,IF($A12=7,ECHEANCIER!$G$9,IF($A12=8,ECHEANCIER!$G$10,""))))))) -> -120 | G12: 10940 | H12: =IF($A12="","",IF($A12=1,ECHEANCIER!$G$3,IF($A12=3,ECHEANCIER!$G$5,IF($A12<>"RETRAITE","")))) ->  | J12: -120
A13: 9 | B13: =IF(A13="","",IF($A13=1,"1",IF($A13=2,"5",IF($A13=3,"10",IF($A13=4,"10",IF($A13=5,"15",IF($A13=6,"15",IF($A13=7,"15",IF($A13=8,"20",IF($A13=9,"27","")))))))))) -> 27 | C13: =IF($A13=1,ECHEANCIER!$D$3,IF($A13=3,ECHEANCIER!$D$3,IF($A13=4,ECHEANCIER!$D$4,IF($A13=5,ECHEANCIER!$D$4,IF($A13=6,ECHEANCIER!$D$4,IF($A13=7,ECHEANCIER!$D$4,IF($A13=8,ECHEANCIER!$D$4,IF($A13=9,ECHEANCIER!$D$11)))))))) -> Prel | D13: =IF($A13="","",IF($A13=1,ECHEANCIER!$E$3,IF($A13=3,ECHEANCIER!$E$3,IF($A13=2,ECHEANCIER!$E$4,IF($A13=4,ECHEANCIER!$E$6,IF($A13=5,ECHEANCIER!$E$7,IF($A13=6,ECHEANCIER!$E$8,IF($A13=7,ECHEANCIER!$E$9,IF($A13=8,ECHEANCIER!$E$10,IF($A13=9,ECHEANCIER!$E$11,"""")))))))))) -> ST CHRIST | E13: =+IF($A13=9,"ass.voit") -> ass.voit | F13: =IF(AND($A13=9,$E13="ASS.VOIT",OR($A$1="janvier",$A$1="avril",$A$1="juillet",$A$1="octobre")),ECHEANCIER!$G$11,"") ->  | G13: 10940 | K13: =IF($E13="C. PORT LOYER",$F13,0) -> 0 | L13: =IF($E13="C. PORT CHARGES",$F13,0) -> 0 | M13: =IF($E13="MOUVEMENTS",$F13,0) -> 0
G14: 10940 | I14: =IF($E14="RECETTES DIVERSES",$F14,0) -> 0 | J14: =IF($E14="DEPENSES",$F14,0) -> 0 | K14: =IF($E14="C. PORT LOYER",$F14,0) -> 0 | L14: =IF($E14="C. PORT CHARGES",$F14,0) -> 0 | M14: =IF($E14="MOUVEMENTS",$F14,0) -> 0
G15: 10940 | I15: =IF($E15="RECETTES DIVERSES",$F15,0) -> 0 | J15: 0 | K15: 0 | L15: 0 | M15: 0
G16: 10940 | I16: =IF($E16="RECETTES DIVERSES",$F16,0) -> 0 | J16: 0 | K16: 0 | L16: 0 | M16: 0
G17: 10940 | I17: 0 | J17: 0 | K17: 0 | L17: 0 | M17: =IF($E17="DIVERS",$F17,0) -> 0
G18: =SUM(G17)+SUM(F18) -> 10940 | I18: 0 | J18: 0 | K18: 0 | L18: 0 | M18: 0
F19: =IF($A19="","",IF($A19=2,ECHEANCIER!$G$4,IF($A19=4,ECHEANCIER!$G$6,IF($A19=5,ECHEANCIER!$G$7,IF($A19=6,ECHEANCIER!$G$8,IF($A19=7,ECHEANCIER!$G$9,IF($A19=8,ECHEANCIER!$G$10,""))))))) ->  | G19: 10940 | I19: 0 | J19: =IF($A19="","",IF($A19=2,ECHEANCIER!$G$4,IF($A19=4,ECHEANCIER!$G$6,IF($A19=5,ECHEANCIER!$G$7,IF($A19=6,ECHEANCIER!$G$8,IF($A19=7,ECHEANCIER!$G$9,IF($A19=8,ECHEANCIER!$G$10,""))))))) ->  | K19: 0 | L19: 0 | M19: 0
G20: 10940 | I20: 0 | J20: =F20 -> 0 | K20: 0 | L20: 0 | M20: 0
A24: TOTAL MOIS | H24: =SUM(H5:H23) -> 1950 | I24: =SUM(I5:I23) -> 0 | J24: =SUM(J5:J23) -> -820 | K24: 0 | L24: 0 | M24: 0
A25: SOUS TOTAL | H25: =H24+H4 -> 5850 | I25: =I24+I4 -> 40 | J25: =J24+J4 -> -2465 | K25: =K24+K4 -> 650 | L25: -135 | M25: =M24+M4 -> -500
A26: TOTAL | G26: =G20 -> 10940 | H26: =SUM(H25:I25) -> 5890 | J26: =J24+J4 -> -2465 | K26: =SUM(K25:L25) -> 515 | M26: =M24+M4 -> -500

Sheet AVRIL
A1: =MID(CELL("filename",A1),FIND("]",CELL("filename",A1))+1,32) -> AVRIL
A2: N° SAISIE | B2: JOURS | C2: MODE | D2: TIERS | E2: CATEGORIE | F2: BANQUE POSTALE | H2: RECETTES | J2: DEPENSES | K2: C. PORT | M2: DIVERS
C3: PAIEMENT | F3: DEBIT/CREDIT | G3: SOLDE | H3: RETRAITE | I3: DIVERSES | K3: LOYER | L3: CHARGES
A4: REPORT | G4: =MARS!G26 -> 10940 | H4: =MARS!H25 -> 5850 | I4: =MARS!I25 -> 40 | J4: =MARS!J25 -> -2465 | K4: =MARS!K25 -> 650 | L4: =MARS!L25 -> -135 | M4: =MARS!M25 -> -500
A5: 1 | B5: =IF(A5="","",IF($A5=1,"1",IF($A5=2,"5",IF($A5=3,"10",IF($A5=4,"10",IF($A5=5,"15",IF($A5=6,"15",IF($A5=7,"15",IF($A5=8,"20",""))))))))) -> 1 | C5: =IF($A5=1,ECHEANCIER!$D$3,IF($A5=3,ECHEANCIER!$D$3,IF($A8=4,ECHEANCIER!$D$4,IF($A8=5,ECHEANCIER!$D$4,IF($A8=6,ECHEANCIER!$D$4,IF($A8=7,ECHEANCIER!$D$4,IF($A8=8,ECHEANCIER!$D$4))))))) -> Vir recu | D5: =IF($A5="","",IF($A5=1,ECHEANCIER!$E$3,IF($A5=3,ECHEANCIER!$E$3,IF($A5=2,ECHEANCIER!$E$4,IF($A5=4,ECHEANCIER!$E$6,IF($A5=5,ECHEANCIER!$E$7,IF($A5=6,ECHEANCIER!$E$8,IF($A5=7,ECHEANCIER!$E$9,IF($A5=8,ECHEANCIER!$E$10,""""))))))))) -> ARCO | E5: =IF(A5="","",IF($A5=1,ECHEANCIER!$F$3,IF($A5=3,ECHEANCIER!$F$3,IF($A5=2,ECHEANCIER!$F$4,IF($A5=4,ECHEANCIER!$F$6,IF($A5=5,ECHEANCIER!$F$7,IF($A5=6,ECHEANCIER!$F$8,IF($A5=7,ECHEANCIER!$F$9,IF($A5=8,ECHEANCIER!$F$10,""""))))))))) -> RETRAITE | F5: =IF($A5="","",IF($A5=1,ECHEANCIER!$G$3,IF($A5=3,ECHEANCIER!$G$5,IF($A5<>"RETRAITE","")))) -> 750 | G5: =SUM(G4)+SUM(F5) -> 11690 | H5: =F5 -> 750 | J5: =IF($A5="","",IF($A5=2,ECHEANCIER!$G$4,IF($A5=4,ECHEANCIER!$G$6,IF($A5=5,ECHEANCIER!$G$7,IF($A5=6,ECHEANCIER!$G$8,IF($A5=7,ECHEANCIER!$G$9,IF($A5=8,ECHEANCIER!$G$10,""))))))) -> 
A6: 3 | B6: 10 | C6: =IF($A6=1,ECHEANCIER!$D$3,IF($A6=3,ECHEANCIER!$D$3,IF($A9=4,ECHEANCIER!$D$4,IF($A9=5,ECHEANCIER!$D$4,IF($A9=6,ECHEANCIER!$D$4,IF($A9=7,ECHEANCIER!$D$4,IF($A9=8,ECHEANCIER!$D$4))))))) -> Vir recu | D6: =IF($A6="","",IF($A6=1,ECHEANCIER!$E$3,IF($A6=3,ECHEANCIER!$E$3,IF($A6=2,ECHEANCIER!$E$4,IF($A6=4,ECHEANCIER!$E$6,IF($A6=5,ECHEANCIER!$E$7,IF($A6=6,ECHEANCIER!$E$8,IF($A6=7,ECHEANCIER!$E$9,IF($A6=8,ECHEANCIER!$E$10,""""))))))))) -> ARCO | E6: =IF(A6="","",IF($A6=1,ECHEANCIER!$F$3,IF($A6=3,ECHEANCIER!$F$3,IF($A6=2,ECHEANCIER!$F$4,IF($A6=4,ECHEANCIER!$F$6,IF($A6=5,ECHEANCIER!$F$7,IF($A6=6,ECHEANCIER!$F$8,IF($A6=7,ECHEANCIER!$F$9,IF($A6=8,ECHEANCIER!$F$10))))))))) -> RETRAITE | F6: =IF($A6="","",IF($A6=1,ECHEANCIER!$G$3,IF($A6=3,ECHEANCIER!$G$5,IF($A6<>"RETRAITE","")))) -> 1200 | G6: =SUM(G5)+SUM(F6) -> 12890 | H6: =F6 -> 1200 | J6: =IF($A6="","",IF($A6=2,ECHEANCIER!$G$4,IF($A6=4,ECHEANCIER!$G$6,IF($A6=5,ECHEANCIER!$G$7,IF($A6=6,ECHEANCIER!$G$8,IF($A6=7,ECHEANCIER!$G$9,IF($A6=8,ECHEANCIER!$G$10,""))))))) -> 
A7: 2 | B7: 5 | C7: =IF($A7=1,ECHEANCIER!$D$3,IF($A7=3,ECHEANCIER!$D$3,IF($A10=4,ECHEANCIER!$D$4,IF($A10=5,ECHEANCIER!$D$4,IF($A10=6,ECHEANCIER!$D$4,IF($A10=7,ECHEANCIER!$D$4,IF($A10=8,ECHEANCIER!$D$4))))))) -> Prel | D7: =IF($A7="","",IF($A7=1,ECHEANCIER!$E$3,IF($A7=3,ECHEANCIER!$E$3,IF($A7=2,ECHEANCIER!$E$4,IF($A7=4,ECHEANCIER!$E$6,IF($A7=5,ECHEANCIER!$E$7,IF($A7=6,ECHEANCIER!$E$8,IF($A7=7,ECHEANCIER!$E$9,IF($A7=8,ECHEANCIER!$E$10,""""))))))))) -> UNEO | E7: =IF(A7="","",IF($A7=1,ECHEANCIER!$F$3,IF($A7=3,ECHEANCIER!$F$3,IF($A7=2,ECHEANCIER!$F$4,IF($A7=4,ECHEANCIER!$F$6,IF($A7=5,ECHEANCIER!$F$7,IF($A7=6,ECHEANCIER!$F$8,IF($A7=7,ECHEANCIER!$F$9,IF($A7=8,"ECHEANCIER!$E$10;"""))))))))) -> MUTUELLE | F7: =IF($A7="","",IF($A7=2,ECHEANCIER!$G$4,IF($A7=4,ECHEANCIER!$G$6,IF($A7=5,ECHEANCIER!$G$7,IF($A7=6,ECHEANCIER!$G$8,IF($A7=7,ECHEANCIER!$G$9,IF($A7=8,ECHEANCIER!$G$10,""))))))) -> -100 | G7: 12790 | H7: =IF($A7="","",IF($A7=1,ECHEANCIER!$G$3,IF($A7=3,ECHEANCIER!$G$5,IF($A7<>"RETRAITE","")))) ->  | J7: =F7 -> -100
A8: 4 | B8: 10 | C8: =IF($A8=1,ECHEANCIER!$D$3,IF($A8=3,ECHEANCIER!$D$3,IF($A11=4,ECHEANCIER!$D$4,IF($A11=5,ECHEANCIER!$D$4,IF($A11=6,ECHEANCIER!$D$4,IF($A11=7,ECHEANCIER!$D$4,IF($A11=8,ECHEANCIER!$D$4))))))) -> Prel | D8: =IF($A8="","",IF($A8=1,ECHEANCIER!$E$3,IF($A8=3,ECHEANCIER!$E$3,IF($A8=2,ECHEANCIER!$E$4,IF($A8=4,ECHEANCIER!$E$6,IF($A8=5,ECHEANCIER!$E$7,IF($A8=6,ECHEANCIER!$E$8,IF($A8=7,ECHEANCIER!$E$9,IF($A8=8,ECHEANCIER!$E$10,""""))))))))) -> A.L.M. | E8: =IF(A8="","",IF($A8=1,ECHEANCIER!$F$3,IF($A8=3,ECHEANCIER!$F$3,IF($A8=2,ECHEANCIER!$F$4,IF($A8=4,ECHEANCIER!$F$6,IF($A8=5,ECHEANCIER!$F$7,IF($A8=6,ECHEANCIER!$F$8,IF($A8=7,ECHEANCIER!$F$9,IF($A8=8,"ECHEANCIER!$E$10;"""))))))))) -> EAUX | F8: =IF($A8="","",IF($A8=2,ECHEANCIER!$G$4,IF($A8=4,ECHEANCIER!$G$6,IF($A8=5,ECHEANCIER!$G$7,IF($A8=6,ECHEANCIER!$G$8,IF($A8=7,ECHEANCIER!$G$9,IF($A8=8,ECHEANCIER!$G$10,""))))))) -> -40 | G8: 12750 | H8: =IF($A8="","",IF($A8=1,ECHEANCIER!$G$3,IF($A8=3,ECHEANCIER!$G$5,IF($A8<>"RETRAITE","")))) ->  | J8: =F8 -> -40
A9: 5 | B9: 15 | C9: =IF($A9=1,ECHEANCIER!$D$3,IF($A9=3,ECHEANCIER!$D$3,IF($A12=4,ECHEANCIER!$D$4,IF($A12=5,ECHEANCIER!$D$4,IF($A12=6,ECHEANCIER!$D$4,IF($A12=7,ECHEANCIER!$D$4,IF($A12=8,ECHEANCIER!$D$4))))))) -> Prel | D9: =IF($A9="","",IF($A9=1,ECHEANCIER!$E$3,IF($A9=3,ECHEANCIER!$E$3,IF($A9=2,ECHEANCIER!$E$4,IF($A9=4,ECHEANCIER!$E$6,IF($A9=5,ECHEANCIER!$E$7,IF($A9=6,ECHEANCIER!$E$8,IF($A9=7,ECHEANCIER!$E$9,IF($A9=8,ECHEANCIER!$E$10,""""))))))))) -> T.P. | E9: =IF(A9="","",IF($A9=1,ECHEANCIER!$F$3,IF($A9=3,ECHEANCIER!$F$3,IF($A9=2,ECHEANCIER!$F$4,IF($A9=4,ECHEANCIER!$F$6,IF($A9=5,ECHEANCIER!$F$7,IF($A9=6,ECHEANCIER!$F$8,IF($A9=7,ECHEANCIER!$F$9,IF($A9=8,"ECHEANCIER!$E$10;"""))))))))) -> T.HABI | F9: =IF($A9="","",IF($A9=2,ECHEANCIER!$G$4,IF($A9=4,ECHEANCIER!$G$6,IF($A9=5,ECHEANCIER!$G$7,IF($A9=6,ECHEANCIER!$G$8,IF($A9=7,ECHEANCIER!$G$9,IF($A9=8,ECHEANCIER!$G$10,""))))))) -> -100 | G9: 12650 | H9: =IF($A9="","",IF($A9=1,ECHEANCIER!$G$3,IF($A9=3,ECHEANCIER!$G$5,IF($A9<>"RETRAITE","")))) ->  | J9: -100
A10: 6 | B10: 15 | C10: =IF($A10=1,ECHEANCIER!$D$3,IF($A10=3,ECHEANCIER!$D$3,IF($A10=4,ECHEANCIER!$D$4,IF($A10=5,ECHEANCIER!$D$4,IF($A10=6,ECHEANCIER!$D$4,IF($A10=7,ECHEANCIER!$D$4,IF($A10=8,ECHEANCIER!$D$4))))))) -> Prel | D10: =IF($A10="","",IF($A10=1,ECHEANCIER!$E$3,IF($A10=3,ECHEANCIER!$E$3,IF($A10=2,ECHEANCIER!$E$4,IF($A10=4,ECHEANCIER!$E$6,IF($A10=5,ECHEANCIER!$E$7,IF($A10=6,ECHEANCIER!$E$8,IF($A10=7,ECHEANCIER!$E$9,IF($A10=8,ECHEANCIER!$E$10,""""))))))))) -> T.P. | E10: =IF(A10="","",IF($A10=1,ECHEANCIER!$F$3,IF($A10=3,ECHEANCIER!$F$3,IF($A10=2,ECHEANCIER!$F$4,IF($A10=4,ECHEANCIER!$F$6,IF($A10=5,ECHEANCIER!$F$7,IF($A10=6,ECHEANCIER!$F$8,IF($A10=7,ECHEANCIER!$F$9,IF($A10=8,"ECHEANCIER!$E$10;"""))))))))) -> T.FONC | F10: =IF($A10="","",IF($A10=2,ECHEANCIER!$G$4,IF($A10=4,ECHEANCIER!$G$6,IF($A10=5,ECHEANCIER!$G$7,IF($A10=6,ECHEANCIER!$G$8,IF($A10=7,ECHEANCIER!$G$9,IF($A10=8,ECHEANCIER!$G$10,""))))))) -> -110 | G10: 12540 | H10: =IF($A10="","",IF($A10=1,ECHEANCIER!$G$3,IF($A10=3,ECHEANCIER!$G$5,IF($A10<>"RETRAITE","")))) ->  | J10: -110
A11: 7 | B11: 15 | C11: =IF($A11=1,ECHEANCIER!$D$3,IF($A11=3,ECHEANCIER!$D$3,IF($A11=4,ECHEANCIER!$D$4,IF($A11=5,ECHEANCIER!$D$4,IF($A11=6,ECHEANCIER!$D$4,IF($A11=7,ECHEANCIER!$D$4,IF($A11=8,ECHEANCIER!$D$4))))))) -> Prel | D11: =IF($A11="","",IF($A11=1,ECHEANCIER!$E$3,IF($A11=3,ECHEANCIER!$E$3,IF($A11=2,ECHEANCIER!$E$4,IF($A11=4,ECHEANCIER!$E$6,IF($A11=5,ECHEANCIER!$E$7,IF($A11=6,ECHEANCIER!$E$8,IF($A11=7,ECHEANCIER!$E$9,IF($A11=8,ECHEANCIER!$E$10,""""))))))))) -> T.P. | E11: =IF(A11="","",IF($A11=1,ECHEANCIER!$F$3,IF($A11=3,ECHEANCIER!$F$3,IF($A11=2,ECHEANCIER!$F$4,IF($A11=4,ECHEANCIER!$F$6,IF($A11=5,ECHEANCIER!$F$7,IF($A11=6,ECHEANCIER!$F$8,IF($A11=7,ECHEANCIER!$F$9,IF($A11=8,"ECHEANCIER!$E$10;"""))))))))) -> IMP.REV | F11: =IF($A11="","",IF($A11=2,ECHEANCIER!$G$4,IF($A11=4,ECHEANCIER!$G$6,IF($A11=5,ECHEANCIER!$G$7,IF($A11=6,ECHEANCIER!$G$8,IF($A11=7,ECHEANCIER!$G$9,IF($A11=8,ECHEANCIER!$G$10,""))))))) -> -350 | G11: 12190 | H11: =IF($A11="","",IF($A11=1,ECHEANCIER!$G$3,IF($A11=3,ECHEANCIER!$G$5,IF($A11<>"RETRAITE","")))) ->  | J11: -350
A12: 8 | B12: 20 | C12: =IF($A12=1,ECHEANCIER!$D$3,IF($A12=3,ECHEANCIER!$D$3,IF($A12=4,ECHEANCIER!$D$4,IF($A12=5,ECHEANCIER!$D$4,IF($A12=6,ECHEANCIER!$D$4,IF($A12=7,ECHEANCIER!$D$4,IF($A12=8,ECHEANCIER!$D$4,IF($A12=9,ECHEANCIER!$D$11)))))))) -> Prel | D12: =IF($A12="","",IF($A12=1,ECHEANCIER!$E$3,IF($A12=3,ECHEANCIER!$E$3,IF($A12=2,ECHEANCIER!$E$4,IF($A12=4,ECHEANCIER!$E$6,IF($A12=5,ECHEANCIER!$E$7,IF($A12=6,ECHEANCIER!$E$8,IF($A12=7,ECHEANCIER!$E$9,IF($A12=8,ECHEANCIER!$E$10,IF($A12=9,ECHEANCIER!$E$11,"""")))))))))) -> ENGIE | E12: =IF(A12="","",IF($A12=1,ECHEANCIER!$F$3,IF($A12=3,ECHEANCIER!$F$3,IF($A12=2,ECHEANCIER!$F$4,IF($A12=4,ECHEANCIER!$F$6,IF($A12=5,ECHEANCIER!$F$7,IF($A12=6,ECHEANCIER!$F$8,IF($A12=7,ECHEANCIER!$F$9,IF($A12=8,ECHEANCIER!$F$10,""""))))))))) -> GAZ-ELEC | F12: =IF($A12="","",IF($A12=2,ECHEANCIER!$G$4,IF($A12=4,ECHEANCIER!$G$6,IF($A12=5,ECHEANCIER!$G$7,IF($A12=6,ECHEANCIER!$G$8,IF($A12=7,ECHEANCIER!$G$9,IF($A12=8,ECHEANCIER!$G$10,""))))))) -> -120 | G12: 12070 | H12: =IF($A12="","",IF($A12=1,ECHEANCIER!$G$3,IF($A12=3,ECHEANCIER!$G$5,IF($A12<>"RETRAITE","")))) ->  | J12: -120
A13: 9 | B13: =IF(A13="","",IF($A13=1,"1",IF($A13=2,"5",IF($A13=3,"10",IF($A13=4,"10",IF($A13=5,"15",IF($A13=6,"15",IF($A13=7,"15",IF($A13=8,"20",IF($A13=9,"27","")))))))))) -> 27 | C13: =IF($A13=1,ECHEANCIER!$D$3,IF($A13=3,ECHEANCIER!$D$3,IF($A13=4,ECHEANCIER!$D$4,IF($A13=5,ECHEANCIER!$D$4,IF($A13=6,ECHEANCIER!$D$4,IF($A13=7,ECHEANCIER!$D$4,IF($A13=8,ECHEANCIER!$D$4,IF($A13=9,ECHEANCIER!$D$11)))))))) -> Prel | D13: =IF($A13="","",IF($A13=1,ECHEANCIER!$E$3,IF($A13=3,ECHEANCIER!$E$3,IF($A13=2,ECHEANCIER!$E$4,IF($A13=4,ECHEANCIER!$E$6,IF($A13=5,ECHEANCIER!$E$7,IF($A13=6,ECHEANCIER!$E$8,IF($A13=7,ECHEANCIER!$E$9,IF($A13=8,ECHEANCIER!$E$10,IF($A13=9,ECHEANCIER!$E$11,"""")))))))))) -> ST CHRIST | E13: =+IF($A13=9,"ass.voit") -> ass.voit | F13: =IF(AND($A13=9,$E13="ASS.VOIT",OR($A$1="janvier",$A$1="avril",$A$1="juillet",$A$1="octobre")),ECHEANCIER!$G$11,"") -> -95 | G13: 11975 | J13: -95 | K13: =IF($E13="C. PORT LOYER",$F13,0) -> 0 | L13: =IF($E13="C. PORT CHARGES",$F13,0) -> 0 | M13: =IF($E13="MOUVEMENTS",$F13,0) -> 0
G14: 11975 | I14: =IF($E14="RECETTES DIVERSES",$F14,0) -> 0 | J14: =IF($E14="DEPENSES",$F14,0) -> 0 | K14: =IF($E14="C. PORT LOYER",$F14,0) -> 0 | L14: =IF($E14="C. PORT CHARGES",$F14,0) -> 0 | M14: =IF($E14="MOUVEMENTS",$F14,0) -> 0
G15: 11975 | I15: =IF($E15="RECETTES DIVERSES",$F15,0) -> 0 | J15: 0 | K15: 0 | L15: 0 | M15: 0
G16: 11975 | I16: =IF($E16="RECETTES DIVERSES",$F16,0) -> 0 | J16: 0 | K16: 0 | L16: 0 | M16: 0
G17: 11975 | I17: 0 | J17: 0 | K17: 0 | L17: 0 | M17: =IF($E17="DIVERS",$F17,0) -> 0
G18: =SUM(G17)+SUM(F18) -> 11975 | I18: 0 | J18: 0 | K18: 0 | L18: 0 | M18: 0
F19: =IF($A19="","",IF($A19=2,ECHEANCIER!$G$4,IF($A19=4,ECHEANCIER!$G$6,IF($A19=5,ECHEANCIER!$G$7,IF($A19=6,ECHEANCIER!$G$8,IF($A19=7,ECHEANCIER!$G$9,IF($A19=8,ECHEANCIER!$G$10,""))))))) ->  | G19: 11975 | I19: 0 | J19: =IF($A19="","",IF($A19=2,ECHEANCIER!$G$4,IF($A19=4,ECHEANCIER!$G$6,IF($A19=5,ECHEANCIER!$G$7,IF($A19=6,ECHEANCIER!$G$8,IF($A19=7,ECHEANCIER!$G$9,IF($A19=8,ECHEANCIER!$G$10,""))))))) ->  | K19: 0 | L19: 0 | M19: 0
G20: 11975 | I20: 0 | J20: =F20 -> 0 | K20: 0 | L20: 0 | M20: 0
A24: TOTAL MOIS | H24: =SUM(H5:H23) -> 1950 | I24: =SUM(I5:I23) -> 0 | J24: =SUM(J5:J23) -> -915 | K24: 0 | L24: 0 | M24: 0
A25: SOUS TOTAL | H25: =H24+H4 -> 7800 | I25: =I24+I4 -> 40 | J25: =J24+J4 -> -3380 | K25: 650 | L25: =L24+L4 -> -135 | M25: =M24+M4 -> -500
A26: TOTAL | G26: =G20 -> 11975 | H26: =SUM(H25:I25) -> 7840 | J26: =J24+J4 -> -3380 | K26: =SUM(K25:L25) -> 515 | M26: =M24+M4 -> -500

Sheet MAI
A1: =MID(CELL("filename",A1),FIND("]",CELL("filename",A1))+1,32) -> MAI
A2: N° SAISIE | B2: JOURS | C2: MODE | D2: TIERS | E2: CATEGORIE | F2: BANQUE POSTALE | H2: RECETTES | J2: DEPENSES | K2: C. PORT | M2: DIVERS
C3: PAIEMENT | F3: DEBIT/CREDIT | G3: SOLDE | H3: RETRAITE | I3: DIVERSES | K3: LOYER | L3: CHARGES
A4: REPORT | G4: =AVRIL!G26 -> 11975 | H4: =AVRIL!H25 -> 7800 | I4: =AVRIL!I25 -> 40 | J4: =AVRIL!J25 -> -3380 | K4: =AVRIL!K25 -> 650 | L4: =AVRIL!L25 -> -135 | M4: =AVRIL!M25 -> -500
A5: 1 | B5: =IF(A5="","",IF($A5=1,"1",IF($A5=2,"5",IF($A5=3,"10",IF($A5=4,"10",IF($A5=5,"15",IF($A5=6,"15",IF($A5=7,"15",IF($A5=8,"20",""))))))))) -> 1 | C5: =IF($A5=1,ECHEANCIER!$D$3,IF($A5=3,ECHEANCIER!$D$3,IF($A8=4,ECHEANCIER!$D$4,IF($A8=5,ECHEANCIER!$D$4,IF($A8=6,ECHEANCIER!$D$4,IF($A8=7,ECHEANCIER!$D$4,IF($A8=8,ECHEANCIER!$D$4))))))) -> Vir recu | D5: =IF($A5="","",IF($A5=1,ECHEANCIER!$E$3,IF($A5=3,ECHEANCIER!$E$3,IF($A5=2,ECHEANCIER!$E$4,IF($A5=4,ECHEANCIER!$E$6,IF($A5=5,ECHEANCIER!$E$7,IF($A5=6,ECHEANCIER!$E$8,IF($A5=7,ECHEANCIER!$E$9,IF($A5=8,ECHEANCIER!$E$10,""""))))))))) -> ARCO | E5: =IF(A5="","",IF($A5=1,ECHEANCIER!$F$3,IF($A5=3,ECHEANCIER!$F$3,IF($A5=2,ECHEANCIER!$F$4,IF($A5=4,ECHEANCIER!$F$6,IF($A5=5,ECHEANCIER!$F$7,IF($A5=6,ECHEANCIER!$F$8,IF($A5=7,ECHEANCIER!$F$9,IF($A5=8,ECHEANCIER!$F$10,""""))))))))) -> RETRAITE | F5: =IF($A5="","",IF($A5=1,ECHEANCIER!$G$3,IF($A5=3,ECHEANCIER!$G$5,IF($A5<>"RETRAITE","")))) -> 750 | G5: =SUM(G4)+SUM(F5) -> 12725 | H5: =F5 -> 750 | J5: =IF($A5="","",IF($A5=2,ECHEANCIER!$G$4,IF($A5=4,ECHEANCIER!$G$6,IF($A5=5,ECHEANCIER!$G$7,IF($A5=6,ECHEANCIER!$G$8,IF($A5=7,ECHEANCIER!$G$9,IF($A5=8,ECHEANCIER!$G$10,""))))))) -> 
A6: 3 | B6: 10 | C6: =IF($A6=1,ECHEANCIER!$D$3,IF($A6=3,ECHEANCIER!$D$3,IF($A9=4,ECHEANCIER!$D$4,IF($A9=5,ECHEANCIER!$D$4,IF($A9=6,ECHEANCIER!$D$4,IF($A9=7,ECHEANCIER!$D$4,IF($A9=8,ECHEANCIER!$D$4))))))) -> Vir recu | D6: =IF($A6="","",IF($A6=1,ECHEANCIER!$E$3,IF($A6=3,ECHEANCIER!$E$3,IF($A6=2,ECHEANCIER!$E$4,IF($A6=4,ECHEANCIER!$E$6,IF($A6=5,ECHEANCIER!$E$7,IF($A6=6,ECHEANCIER!$E$8,IF($A6=7,ECHEANCIER!$E$9,IF($A6=8,ECHEANCIER!$E$10,""""))))))))) -> ARCO | E6: =IF(A6="","",IF($A6=1,ECHEANCIER!$F$3,IF($A6=3,ECHEANCIER!$F$3,IF($A6=2,ECHEANCIER!$F$4,IF($A6=4,ECHEANCIER!$F$6,IF($A6=5,ECHEANCIER!$F$7,IF($A6=6,ECHEANCIER!$F$8,IF($A6=7,ECHEANCIER!$F$9,IF($A6=8,ECHEANCIER!$F$10))))))))) -> RETRAITE | F6: =IF($A6="","",IF($A6=1,ECHEANCIER!$G$3,IF($A6=3,ECHEANCIER!$G$5,IF($A6<>"RETRAITE","")))) -> 1200 | G6: =SUM(G5)+SUM(F6) -> 13925 | H6: =F6 -> 1200 | J6: =IF($A6="","",IF($A6=2,ECHEANCIER!$G$4,IF($A6=4,ECHEANCIER!$G$6,IF($A6=5,ECHEANCIER!$G$7,IF($A6=6,ECHEANCIER!$G$8,IF($A6=7,ECHEANCIER!$G$9,IF($A6=8,ECHEANCIER!$G$10,""))))))) -> 
A7: 2 | B7: 5 | C7: =IF($A7=1,ECHEANCIER!$D$3,IF($A7=3,ECHEANCIER!$D$3,IF($A10=4,ECHEANCIER!$D$4,IF($A10=5,ECHEANCIER!$D$4,IF($A10=6,ECHEANCIER!$D$4,IF($A10=7,ECHEANCIER!$D$4,IF($A10=8,ECHEANCIER!$D$4))))))) -> Prel | D7: =IF($A7="","",IF($A7=1,ECHEANCIER!$E$3,IF($A7=3,ECHEANCIER!$E$3,IF($A7=2,ECHEANCIER!$E$4,IF($A7=4,ECHEANCIER!$E$6,IF($A7=5,ECHEANCIER!$E$7,IF($A7=6,ECHEANCIER!$E$8,IF($A7=7,ECHEANCIER!$E$9,IF($A7=8,ECHEANCIER!$E$10,""""))))))))) -> UNEO | E7: =IF(A7="","",IF($A7=1,ECHEANCIER!$F$3,IF($A7=3,ECHEANCIER!$F$3,IF($A7=2,ECHEANCIER!$F$4,IF($A7=4,ECHEANCIER!$F$6,IF($A7=5,ECHEANCIER!$F$7,IF($A7=6,ECHEANCIER!$F$8,IF($A7=7,ECHEANCIER!$F$9,IF($A7=8,"ECHEANCIER!$E$10;"""))))))))) -> MUTUELLE | F7: =IF($A7="","",IF($A7=2,ECHEANCIER!$G$4,IF($A7=4,ECHEANCIER!$G$6,IF($A7=5,ECHEANCIER!$G$7,IF($A7=6,ECHEANCIER!$G$8,IF($A7=7,ECHEANCIER!$G$9,IF($A7=8,ECHEANCIER!$G$10,""))))))) -> -100 | G7: 13825 | H7: =IF($A7="","",IF($A7=1,ECHEANCIER!$G$3,IF($A7=3,ECHEANCIER!$G$5,IF($A7<>"RETRAITE","")))) ->  | J7: =F7 -> -100
A8: 4 | B8: 10 | C8: =IF($A8=1,ECHEANCIER!$D$3,IF($A8=3,ECHEANCIER!$D$3,IF($A11=4,ECHEANCIER!$D$4,IF($A11=5,ECHEANCIER!$D$4,IF($A11=6,ECHEANCIER!$D$4,IF($A11=7,ECHEANCIER!$D$4,IF($A11=8,ECHEANCIER!$D$4))))))) -> Prel | D8: =IF($A8="","",IF($A8=1,ECHEANCIER!$E$3,IF($A8=3,ECHEANCIER!$E$3,IF($A8=2,ECHEANCIER!$E$4,IF($A8=4,ECHEANCIER!$E$6,IF($A8=5,ECHEANCIER!$E$7,IF($A8=6,ECHEANCIER!$E$8,IF($A8=7,ECHEANCIER!$E$9,IF($A8=8,ECHEANCIER!$E$10,""""))))))))) -> A.L.M. | E8: =IF(A8="","",IF($A8=1,ECHEANCIER!$F$3,IF($A8=3,ECHEANCIER!$F$3,IF($A8=2,ECHEANCIER!$F$4,IF($A8=4,ECHEANCIER!$F$6,IF($A8=5,ECHEANCIER!$F$7,IF($A8=6,ECHEANCIER!$F$8,IF($A8=7,ECHEANCIER!$F$9,IF($A8=8,"ECHEANCIER!$E$10;"""))))))))) -> EAUX | F8: =IF($A8="","",IF($A8=2,ECHEANCIER!$G$4,IF($A8=4,ECHEANCIER!$G$6,IF($A8=5,ECHEANCIER!$G$7,IF($A8=6,ECHEANCIER!$G$8,IF($A8=7,ECHEANCIER!$G$9,IF($A8=8,ECHEANCIER!$G$10,""))))))) -> -40 | G8: 13785 | H8: =IF($A8="","",IF($A8=1,ECHEANCIER!$G$3,IF($A8=3,ECHEANCIER!$G$5,IF($A8<>"RETRAITE","")))) ->  | J8: =F8 -> -40
A9: 5 | B9: 15 | C9: =IF($A9=1,ECHEANCIER!$D$3,IF($A9=3,ECHEANCIER!$D$3,IF($A12=4,ECHEANCIER!$D$4,IF($A12=5,ECHEANCIER!$D$4,IF($A12=6,ECHEANCIER!$D$4,IF($A12=7,ECHEANCIER!$D$4,IF($A12=8,ECHEANCIER!$D$4))))))) -> Prel | D9: =IF($A9="","",IF($A9=1,ECHEANCIER!$E$3,IF($A9=3,ECHEANCIER!$E$3,IF($A9=2,ECHEANCIER!$E$4,IF($A9=4,ECHEANCIER!$E$6,IF($A9=5,ECHEANCIER!$E$7,IF($A9=6,ECHEANCIER!$E$8,IF($A9=7,ECHEANCIER!$E$9,IF($A9=8,ECHEANCIER!$E$10,""""))))))))) -> T.P. | E9: =IF(A9="","",IF($A9=1,ECHEANCIER!$F$3,IF($A9=3,ECHEANCIER!$F$3,IF($A9=2,ECHEANCIER!$F$4,IF($A9=4,ECHEANCIER!$F$6,IF($A9=5,ECHEANCIER!$F$7,IF($A9=6,ECHEANCIER!$F$8,IF($A9=7,ECHEANCIER!$F$9,IF($A9=8,"ECHEANCIER!$E$10;"""))))))))) -> T.HABI | F9: =IF($A9="","",IF($A9=2,ECHEANCIER!$G$4,IF($A9=4,ECHEANCIER!$G$6,IF($A9=5,ECHEANCIER!$G$7,IF($A9=6,ECHEANCIER!$G$8,IF($A9=7,ECHEANCIER!$G$9,IF($A9=8,ECHEANCIER!$G$10,""))))))) -> -100 | G9: 13685 | H9: =IF($A9="","",IF($A9=1,ECHEANCIER!$G$3,IF($A9=3,ECHEANCIER!$G$5,IF($A9<>"RETRAITE","")))) ->  | J9: -100
A10: 6 | B10: 15 | C10: =IF($A10=1,ECHEANCIER!$D$3,IF($A10=3,ECHEANCIER!$D$3,IF($A10=4,ECHEANCIER!$D$4,IF($A10=5,ECHEANCIER!$D$4,IF($A10=6,ECHEANCIER!$D$4,IF($A10=7,ECHEANCIER!$D$4,IF($A10=8,ECHEANCIER!$D$4))))))) -> Prel | D10: =IF($A10="","",IF($A10=1,ECHEANCIER!$E$3,IF($A10=3,ECHEANCIER!$E$3,IF($A10=2,ECHEANCIER!$E$4,IF($A10=4,ECHEANCIER!$E$6,IF($A10=5,ECHEANCIER!$E$7,IF($A10=6,ECHEANCIER!$E$8,IF($A10=7,ECHEANCIER!$E$9,IF($A10=8,ECHEANCIER!$E$10,""""))))))))) -> T.P. | E10: =IF(A10="","",IF($A10=1,ECHEANCIER!$F$3,IF($A10=3,ECHEANCIER!$F$3,IF($A10=2,ECHEANCIER!$F$4,IF($A10=4,ECHEANCIER!$F$6,IF($A10=5,ECHEANCIER!$F$7,IF($A10=6,ECHEANCIER!$F$8,IF($A10=7,ECHEANCIER!$F$9,IF($A10=8,"ECHEANCIER!$E$10;"""))))))))) -> T.FONC | F10: =IF($A10="","",IF($A10=2,ECHEANCIER!$G$4,IF($A10=4,ECHEANCIER!$G$6,IF($A10=5,ECHEANCIER!$G$7,IF($A10=6,ECHEANCIER!$G$8,IF($A10=7,ECHEANCIER!$G$9,IF($A10=8,ECHEANCIER!$G$10,""))))))) -> -110 | G10: 13575 | H10: =IF($A10="","",IF($A10=1,ECHEANCIER!$G$3,IF($A10=3,ECHEANCIER!$G$5,IF($A10<>"RETRAITE","")))) ->  | J10: -110
A11: 7 | B11: 15 | C11: =IF($A11=1,ECHEANCIER!$D$3,IF($A11=3,ECHEANCIER!$D$3,IF($A11=4,ECHEANCIER!$D$4,IF($A11=5,ECHEANCIER!$D$4,IF($A11=6,ECHEANCIER!$D$4,IF($A11=7,ECHEANCIER!$D$4,IF($A11=8,ECHEANCIER!$D$4))))))) -> Prel | D11: =IF($A11="","",IF($A11=1,ECHEANCIER!$E$3,IF($A11=3,ECHEANCIER!$E$3,IF($A11=2,ECHEANCIER!$E$4,IF($A11=4,ECHEANCIER!$E$6,IF($A11=5,ECHEANCIER!$E$7,IF($A11=6,ECHEANCIER!$E$8,IF($A11=7,ECHEANCIER!$E$9,IF($A11=8,ECHEANCIER!$E$10,""""))))))))) -> T.P. | E11: =IF(A11="","",IF($A11=1,ECHEANCIER!$F$3,IF($A11=3,ECHEANCIER!$F$3,IF($A11=2,ECHEANCIER!$F$4,IF($A11=4,ECHEANCIER!$F$6,IF($A11=5,ECHEANCIER!$F$7,IF($A11=6,ECHEANCIER!$F$8,IF($A11=7,ECHEANCIER!$F$9,IF($A11=8,"ECHEANCIER!$E$10;"""))))))))) -> IMP.REV | F11: =IF($A11="","",IF($A11=2,ECHEANCIER!$G$4,IF($A11=4,ECHEANCIER!$G$6,IF($A11=5,ECHEANCIER!$G$7,IF($A11=6,ECHEANCIER!$G$8,IF($A11=7,ECHEANCIER!$G$9,IF($A11=8,ECHEANCIER!$G$10,""))))))) -> -350 | G11: 13225 | H11: =IF($A11="","",IF($A11=1,ECHEANCIER!$G$3,IF($A11=3,ECHEANCIER!$G$5,IF($A11<>"RETRAITE","")))) ->  | J11: -350
A12: 8 | B12: 20 | C12: =IF($A12=1,ECHEANCIER!$D$3,IF($A12=3,ECHEANCIER!$D$3,IF($A12=4,ECHEANCIER!$D$4,IF($A12=5,ECHEANCIER!$D$4,IF($A12=6,ECHEANCIER!$D$4,IF($A12=7,ECHEANCIER!$D$4,IF($A12=8,ECHEANCIER!$D$4,IF($A12=9,ECHEANCIER!$D$11)))))))) -> Prel | D12: =IF($A12="","",IF($A12=1,ECHEANCIER!$E$3,IF($A12=3,ECHEANCIER!$E$3,IF($A12=2,ECHEANCIER!$E$4,IF($A12=4,ECHEANCIER!$E$6,IF($A12=5,ECHEANCIER!$E$7,IF($A12=6,ECHEANCIER!$E$8,IF($A12=7,ECHEANCIER!$E$9,IF($A12=8,ECHEANCIER!$E$10,IF($A12=9,ECHEANCIER!$E$11,"""")))))))))) -> ENGIE | E12: =IF(A12="","",IF($A12=1,ECHEANCIER!$F$3,IF($A12=3,ECHEANCIER!$F$3,IF($A12=2,ECHEANCIER!$F$4,IF($A12=4,ECHEANCIER!$F$6,IF($A12=5,ECHEANCIER!$F$7,IF($A12=6,ECHEANCIER!$F$8,IF($A12=7,ECHEANCIER!$F$9,IF($A12=8,ECHEANCIER!$F$10,""""))))))))) -> GAZ-ELEC | F12: =IF($A12="","",IF($A12=2,ECHEANCIER!$G$4,IF($A12=4,ECHEANCIER!$G$6,IF($A12=5,ECHEANCIER!$G$7,IF($A12=6,ECHEANCIER!$G$8,IF($A12=7,ECHEANCIER!$G$9,IF($A12=8,ECHEANCIER!$G$10,""))))))) -> -120 | G12: 13105 | H12: =IF($A12="","",IF($A12=1,ECHEANCIER!$G$3,IF($A12=3,ECHEANCIER!$G$5,IF($A12<>"RETRAITE","")))) ->  | J12: -120
A13: 9 | B13: =IF(A13="","",IF($A13=1,"1",IF($A13=2,"5",IF($A13=3,"10",IF($A13=4,"10",IF($A13=5,"15",IF($A13=6,"15",IF($A13=7,"15",IF($A13=8,"20",IF($A13=9,"27","")))))))))) -> 27 | C13: =IF($A13=1,ECHEANCIER!$D$3,IF($A13=3,ECHEANCIER!$D$3,IF($A13=4,ECHEANCIER!$D$4,IF($A13=5,ECHEANCIER!$D$4,IF($A13=6,ECHEANCIER!$D$4,IF($A13=7,ECHEANCIER!$D$4,IF($A13=8,ECHEANCIER!$D$4,IF($A13=9,ECHEANCIER!$D$11)))))))) -> Prel | D13: =IF($A13="","",IF($A13=1,ECHEANCIER!$E$3,IF($A13=3,ECHEANCIER!$E$3,IF($A13=2,ECHEANCIER!$E$4,IF($A13=4,ECHEANCIER!$E$6,IF($A13=5,ECHEANCIER!$E$7,IF($A13=6,ECHEANCIER!$E$8,IF($A13=7,ECHEANCIER!$E$9,IF($A13=8,ECHEANCIER!$E$10,IF($A13=9,ECHEANCIER!$E$11,"""")))))))))) -> ST CHRIST | E13: =+IF($A13=9,"ass.voit") -> ass.voit | F13: =IF(AND($A13=9,$E13="ASS.VOIT",OR($A$1="janvier",$A$1="avril",$A$1="juillet",$A$1="octobre")),ECHEANCIER!$G$11,"") ->  | G13: 13105 | K13: =IF($E13="C. PORT LOYER",$F13,0) -> 0 | L13: =IF($E13="C. PORT CHARGES",$F13,0) -> 0 | M13: =IF($E13="MOUVEMENTS",$F13,0) -> 0
G14: 13105 | I14: =IF($E14="RECETTES DIVERSES",$F14,0) -> 0 | J14: =IF($E14="DEPENSES",$F14,0) -> 0 | K14: =IF($E14="C. PORT LOYER",$F14,0) -> 0 | L14: =IF($E14="C. PORT CHARGES",$F14,0) -> 0 | M14: =IF($E14="MOUVEMENTS",$F14,0) -> 0
G15: 13105 | I15: =IF($E15="RECETTES DIVERSES",$F15,0) -> 0 | J15: 0 | K15: 0 | L15: 0 | M15: 0
G16: 13105 | I16: =IF($E16="RECETTES DIVERSES",$F16,0) -> 0 | J16: 0 | K16: 0 | L16: 0 | M16: 0
G17: 13105 | I17: 0 | J17: 0 | K17: 0 | L17: 0 | M17: =IF($E17="DIVERS",$F17,0) -> 0
G18: =SUM(G17)+SUM(F18) -> 13105 | I18: 0 | J18: 0 | K18: 0 | L18: 0 | M18: 0
F19: =IF($A19="","",IF($A19=2,ECHEANCIER!$G$4,IF($A19=4,ECHEANCIER!$G$6,IF($A19=5,ECHEANCIER!$G$7,IF($A19=6,ECHEANCIER!$G$8,IF($A19=7,ECHEANCIER!$G$9,IF($A19=8,ECHEANCIER!$G$10,""))))))) ->  | G19: 13105 | I19: 0 | J19: =IF($A19="","",IF($A19=2,ECHEANCIER!$G$4,IF($A19=4,ECHEANCIER!$G$6,IF($A19=5,ECHEANCIER!$G$7,IF($A19=6,ECHEANCIER!$G$8,IF($A19=7,ECHEANCIER!$G$9,IF($A19=8,ECHEANCIER!$G$10,""))))))) ->  | K19: 0 | L19: 0 | M19: 0
G20: 13105 | I20: 0 | J20: =F20 -> 0 | K20: 0 | L20: 0 | M20: 0
A24: TOTAL MOIS | H24: =SUM(H5:H23) -> 1950 | I24: =SUM(I5:I23) -> 0 | J24: =SUM(J5:J23) -> -820 | K24: 0 | L24: 0 | M24: 0
A25: SOUS TOTAL | H25: =H24+H4 -> 9750 | I25: =I24+I4 -> 40 | J25: =J24+J4 -> -4200 | K25: 650 | L25: =L24+L4 -> -135 | M25: -500
A26: TOTAL | G26: =G20 -> 13105 | H26: =SUM(H25:I25) -> 9790 | J26: =J24+J4 -> -4200 | K26: =SUM(K25:L25) -> 515 | M26: =M24+M4 -> -500

Sheet JUIN
A1: =MID(CELL("filename",A1),FIND("]",CELL("filename",A1))+1,32) -> JUIN
A2: N° SAISIE | B2: JOURS | C2: MODE | D2: TIERS | E2: CATEGORIE | F2: BANQUE POSTALE | H2: RECETTES | J2: DEPENSES | K2: C. PORT | M2: DIVERS
C3: PAIEMENT | F3: DEBIT/CREDIT | G3: SOLDE | H3: RETRAITE | I3: DIVERSES | K3: LOYER | L3: CHARGES
A4: REPORT | G4: =AVRIL!G26 -> 11975 | H4: =AVRIL!H25 -> 7800 | I4: =AVRIL!I25 -> 40 | J4: =AVRIL!J25 -> -3380 | K4: =AVRIL!K25 -> 650 | L4: =AVRIL!L25 -> -135 | M4: =AVRIL!M25 -> -500
A5: 1 | B5: =IF(A5="","",IF($A5=1,"1",IF($A5=2,"5",IF($A5=3,"10",IF($A5=4,"10",IF($A5=5,"15",IF($A5=6,"15",IF($A5=7,"15",IF($A5=8,"20",""))))))))) -> 1 | C5: =IF($A5=1,ECHEANCIER!$D$3,IF($A5=3,ECHEANCIER!$D$3,IF($A8=4,ECHEANCIER!$D$4,IF($A8=5,ECHEANCIER!$D$4,IF($A8=6,ECHEANCIER!$D$4,IF($A8=7,ECHEANCIER!$D$4,IF($A8=8,ECHEANCIER!$D$4))))))) -> Vir recu | D5: =IF($A5="","",IF($A5=1,ECHEANCIER!$E$3,IF($A5=3,ECHEANCIER!$E$3,IF($A5=2,ECHEANCIER!$E$4,IF($A5=4,ECHEANCIER!$E$6,IF($A5=5,ECHEANCIER!$E$7,IF($A5=6,ECHEANCIER!$E$8,IF($A5=7,ECHEANCIER!$E$9,IF($A5=8,ECHEANCIER!$E$10,""""))))))))) -> ARCO | E5: =IF(A5="","",IF($A5=1,ECHEANCIER!$F$3,IF($A5=3,ECHEANCIER!$F$3,IF($A5=2,ECHEANCIER!$F$4,IF($A5=4,ECHEANCIER!$F$6,IF($A5=5,ECHEANCIER!$F$7,IF($A5=6,ECHEANCIER!$F$8,IF($A5=7,ECHEANCIER!$F$9,IF($A5=8,ECHEANCIER!$F$10,""""))))))))) -> RETRAITE | F5: =IF($A5="","",IF($A5=1,ECHEANCIER!$G$3,IF($A5=3,ECHEANCIER!$G$5,IF($A5<>"RETRAITE","")))) -> 750 | G5: =SUM(G4)+SUM(F5) -> 12725 | H5: =F5 -> 750 | J5: =IF($A5="","",IF($A5=2,ECHEANCIER!$G$4,IF($A5=4,ECHEANCIER!$G$6,IF($A5=5,ECHEANCIER!$G$7,IF($A5=6,ECHEANCIER!$G$8,IF($A5=7,ECHEANCIER!$G$9,IF($A5=8,ECHEANCIER!$G$10,""))))))) -> 
A6: 3 | B6: 10 | C6: =IF($A6=1,ECHEANCIER!$D$3,IF($A6=3,ECHEANCIER!$D$3,IF($A9=4,ECHEANCIER!$D$4,IF($A9=5,ECHEANCIER!$D$4,IF($A9=6,ECHEANCIER!$D$4,IF($A9=7,ECHEANCIER!$D$4,IF($A9=8,ECHEANCIER!$D$4))))))) -> Vir recu | D6: =IF($A6="","",IF($A6=1,ECHEANCIER!$E$3,IF($A6=3,ECHEANCIER!$E$3,IF($A6=2,ECHEANCIER!$E$4,IF($A6=4,ECHEANCIER!$E$6,IF($A6=5,ECHEANCIER!$E$7,IF($A6=6,ECHEANCIER!$E$8,IF($A6=7,ECHEANCIER!$E$9,IF($A6=8,ECHEANCIER!$E$10,""""))))))))) -> ARCO | E6: =IF(A6="","",IF($A6=1,ECHEANCIER!$F$3,IF($A6=3,ECHEANCIER!$F$3,IF($A6=2,ECHEANCIER!$F$4,IF($A6=4,ECHEANCIER!$F$6,IF($A6=5,ECHEANCIER!$F$7,IF($A6=6,ECHEANCIER!$F$8,IF($A6=7,ECHEANCIER!$F$9,IF($A6=8,ECHEANCIER!$F$10))))))))) -> RETRAITE | F6: =IF($A6="","",IF($A6=1,ECHEANCIER!$G$3,IF($A6=3,ECHEANCIER!$G$5,IF($A6<>"RETRAITE","")))) -> 1200 | G6: =SUM(G5)+SUM(F6) -> 13925 | H6: =F6 -> 1200 | J6: =IF($A6="","",IF($A6=2,ECHEANCIER!$G$4,IF($A6=4,ECHEANCIER!$G$6,IF($A6=5,ECHEANCIER!$G$7,IF($A6=6,ECHEANCIER!$G$8,IF($A6=7,ECHEANCIER!$G$9,IF($A6=8,ECHEANCIER!$G$10,""))))))) -> 
A7: 2 | B7: 5 | C7: =IF($A7=1,ECHEANCIER!$D$3,IF($A7=3,ECHEANCIER!$D$3,IF($A10=4,ECHEANCIER!$D$4,IF($A10=5,ECHEANCIER!$D$4,IF($A10=6,ECHEANCIER!$D$4,IF($A10=7,ECHEANCIER!$D$4,IF($A10=8,ECHEANCIER!$D$4))))))) -> Prel | D7: =IF($A7="","",IF($A7=1,ECHEANCIER!$E$3,IF($A7=3,ECHEANCIER!$E$3,IF($A7=2,ECHEANCIER!$E$4,IF($A7=4,ECHEANCIER!$E$6,IF($A7=5,ECHEANCIER!$E$7,IF($A7=6,ECHEANCIER!$E$8,IF($A7=7,ECHEANCIER!$E$9,IF($A7=8,ECHEANCIER!$E$10,""""))))))))) -> UNEO | E7: =IF(A7="","",IF($A7=1,ECHEANCIER!$F$3,IF($A7=3,ECHEANCIER!$F$3,IF($A7=2,ECHEANCIER!$F$4,IF($A7=4,ECHEANCIER!$F$6,IF($A7=5,ECHEANCIER!$F$7,IF($A7=6,ECHEANCIER!$F$8,IF($A7=7,ECHEANCIER!$F$9,IF($A7=8,"ECHEANCIER!$E$10;"""))))))))) -> MUTUELLE | F7: =IF($A7="","",IF($A7=2,ECHEANCIER!$G$4,IF($A7=4,ECHEANCIER!$G$6,IF($A7=5,ECHEANCIER!$G$7,IF($A7=6,ECHEANCIER!$G$8,IF($A7=7,ECHEANCIER!$G$9,IF($A7=8,ECHEANCIER!$G$10,""))))))) -> -100 | G7: 13825 | H7: =IF($A7="","",IF($A7=1,ECHEANCIER!$G$3,IF($A7=3,ECHEANCIER!$G$5,IF($A7<>"RETRAITE","")))) ->  | J7: =F7 -> -100
A8: 4 | B8: 10 | C8: =IF($A8=1,ECHEANCIER!$D$3,IF($A8=3,ECHEANCIER!$D$3,IF($A11=4,ECHEANCIER!$D$4,IF($A11=5,ECHEANCIER!$D$4,IF($A11=6,ECHEANCIER!$D$4,IF($A11=7,ECHEANCIER!$D$4,IF($A11=8,ECHEANCIER!$D$4))))))) -> Prel | D8: =IF($A8="","",IF($A8=1,ECHEANCIER!$E$3,IF($A8=3,ECHEANCIER!$E$3,IF($A8=2,ECHEANCIER!$E$4,IF($A8=4,ECHEANCIER!$E$6,IF($A8=5,ECHEANCIER!$E$7,IF($A8=6,ECHEANCIER!$E$8,IF($A8=7,ECHEANCIER!$E$9,IF($A8=8,ECHEANCIER!$E$10,""""))))))))) -> A.L.M. | E8: =IF(A8="","",IF($A8=1,ECHEANCIER!$F$3,IF($A8=3,ECHEANCIER!$F$3,IF($A8=2,ECHEANCIER!$F$4,IF($A8=4,ECHEANCIER!$F$6,IF($A8=5,ECHEANCIER!$F$7,IF($A8=6,ECHEANCIER!$F$8,IF($A8=7,ECHEANCIER!$F$9,IF($A8=8,"ECHEANCIER!$E$10;"""))))))))) -> EAUX | F8: =IF($A8="","",IF($A8=2,ECHEANCIER!$G$4,IF($A8=4,ECHEANCIER!$G$6,IF($A8=5,ECHEANCIER!$G$7,IF($A8=6,ECHEANCIER!$G$8,IF($A8=7,ECHEANCIER!$G$9,IF($A8=8,ECHEANCIER!$G$10,""))))))) -> -40 | G8: 13785 | H8: =IF($A8="","",IF($A8=1,ECHEANCIER!$G$3,IF($A8=3,ECHEANCIER!$G$5,IF($A8<>"RETRAITE","")))) ->  | J8: =F8 -> -40
A9: 5 | B9: 15 | C9: =IF($A9=1,ECHEANCIER!$D$3,IF($A9=3,ECHEANCIER!$D$3,IF($A12=4,ECHEANCIER!$D$4,IF($A12=5,ECHEANCIER!$D$4,IF($A12=6,ECHEANCIER!$D$4,IF($A12=7,ECHEANCIER!$D$4,IF($A12=8,ECHEANCIER!$D$4))))))) -> Prel | D9: =IF($A9="","",IF($A9=1,ECHEANCIER!$E$3,IF($A9=3,ECHEANCIER!$E$3,IF($A9=2,ECHEANCIER!$E$4,IF($A9=4,ECHEANCIER!$E$6,IF($A9=5,ECHEANCIER!$E$7,IF($A9=6,ECHEANCIER!$E$8,IF($A9=7,ECHEANCIER!$E$9,IF($A9=8,ECHEANCIER!$E$10,""""))))))))) -> T.P. | E9: =IF(A9="","",IF($A9=1,ECHEANCIER!$F$3,IF($A9=3,ECHEANCIER!$F$3,IF($A9=2,ECHEANCIER!$F$4,IF($A9=4,ECHEANCIER!$F$6,IF($A9=5,ECHEANCIER!$F$7,IF($A9=6,ECHEANCIER!$F$8,IF($A9=7,ECHEANCIER!$F$9,IF($A9=8,"ECHEANCIER!$E$10;"""))))))))) -> T.HABI | F9: =IF($A9="","",IF($A9=2,ECHEANCIER!$G$4,IF($A9=4,ECHEANCIER!$G$6,IF($A9=5,ECHEANCIER!$G$7,IF($A9=6,ECHEANCIER!$G$8,IF($A9=7,ECHEANCIER!$G$9,IF($A9=8,ECHEANCIER!$G$10,""))))))) -> -100 | G9: 13685 | H9: =IF($A9="","",IF($A9=1,ECHEANCIER!$G$3,IF($A9=3,ECHEANCIER!$G$5,IF($A9<>"RETRAITE","")))) ->  | J9: -100
A10: 6 | B10: 15 | C10: =IF($A10=1,ECHEANCIER!$D$3,IF($A10=3,ECHEANCIER!$D$3,IF($A10=4,ECHEANCIER!$D$4,IF($A10=5,ECHEANCIER!$D$4,IF($A10=6,ECHEANCIER!$D$4,IF($A10=7,ECHEANCIER!$D$4,IF($A10=8,ECHEANCIER!$D$4))))))) -> Prel | D10: =IF($A10="","",IF($A10=1,ECHEANCIER!$E$3,IF($A10=3,ECHEANCIER!$E$3,IF($A10=2,ECHEANCIER!$E$4,IF($A10=4,ECHEANCIER!$E$6,IF($A10=5,ECHEANCIER!$E$7,IF($A10=6,ECHEANCIER!$E$8,IF($A10=7,ECHEANCIER!$E$9,IF($A10=8,ECHEANCIER!$E$10,""""))))))))) -> T.P. | E10: =IF(A10="","",IF($A10=1,ECHEANCIER!$F$3,IF($A10=3,ECHEANCIER!$F$3,IF($A10=2,ECHEANCIER!$F$4,IF($A10=4,ECHEANCIER!$F$6,IF($A10=5,ECHEANCIER!$F$7,IF($A10=6,ECHEANCIER!$F$8,IF($A10=7,ECHEANCIER!$F$9,IF($A10=8,"ECHEANCIER!$E$10;"""))))))))) -> T.FONC | F10: =IF($A10="","",IF($A10=2,ECHEANCIER!$G$4,IF($A10=4,ECHEANCIER!$G$6,IF($A10=5,ECHEANCIER!$G$7,IF($A10=6,ECHEANCIER!$G$8,IF($A10=7,ECHEANCIER!$G$9,IF($A10=8,ECHEANCIER!$G$10,""))))))) -> -110 | G10: 13575 | H10: =IF($A10="","",IF($A10=1,ECHEANCIER!$G$3,IF($A10=3,ECHEANCIER!$G$5,IF($A10<>"RETRAITE","")))) ->  | J10: -110
A11: 7 | B11: 15 | C11: =IF($A11=1,ECHEANCIER!$D$3,IF($A11=3,ECHEANCIER!$D$3,IF($A11=4,ECHEANCIER!$D$4,IF($A11=5,ECHEANCIER!$D$4,IF($A11=6,ECHEANCIER!$D$4,IF($A11=7,ECHEANCIER!$D$4,IF($A11=8,ECHEANCIER!$D$4))))))) -> Prel | D11: =IF($A11="","",IF($A11=1,ECHEANCIER!$E$3,IF($A11=3,ECHEANCIER!$E$3,IF($A11=2,ECHEANCIER!$E$4,IF($A11=4,ECHEANCIER!$E$6,IF($A11=5,ECHEANCIER!$E$7,IF($A11=6,ECHEANCIER!$E$8,IF($A11=7,ECHEANCIER!$E$9,IF($A11=8,ECHEANCIER!$E$10,""""))))))))) -> T.P. | E11: =IF(A11="","",IF($A11=1,ECHEANCIER!$F$3,IF($A11=3,ECHEANCIER!$F$3,IF($A11=2,ECHEANCIER!$F$4,IF($A11=4,ECHEANCIER!$F$6,IF($A11=5,ECHEANCIER!$F$7,IF($A11=6,ECHEANCIER!$F$8,IF($A11=7,ECHEANCIER!$F$9,IF($A11=8,"ECHEANCIER!$E$10;"""))))))))) -> IMP.REV | F11: =IF($A11="","",IF($A11=2,ECHEANCIER!$G$4,IF($A11=4,ECHEANCIER!$G$6,IF($A11=5,ECHEANCIER!$G$7,IF($A11=6,ECHEANCIER!$G$8,IF($A11=7,ECHEANCIER!$G$9,IF($A11=8,ECHEANCIER!$G$10,""))))))) -> -350 | G11: 13225 | H11: =IF($A11="","",IF($A11=1,ECHEANCIER!$G$3,IF($A11=3,ECHEANCIER!$G$5,IF($A11<>"RETRAITE","")))) ->  | J11: -350
A12: 8 | B12: 20 | C12: =IF($A12=1,ECHEANCIER!$D$3,IF($A12=3,ECHEANCIER!$D$3,IF($A12=4,ECHEANCIER!$D$4,IF($A12=5,ECHEANCIER!$D$4,IF($A12=6,ECHEANCIER!$D$4,IF($A12=7,ECHEANCIER!$D$4,IF($A12=8,ECHEANCIER!$D$4,IF($A12=9,ECHEANCIER!$D$11)))))))) -> Prel | D12: =IF($A12="","",IF($A12=1,ECHEANCIER!$E$3,IF($A12=3,ECHEANCIER!$E$3,IF($A12=2,ECHEANCIER!$E$4,IF($A12=4,ECHEANCIER!$E$6,IF($A12=5,ECHEANCIER!$E$7,IF($A12=6,ECHEANCIER!$E$8,IF($A12=7,ECHEANCIER!$E$9,IF($A12=8,ECHEANCIER!$E$10,IF($A12=9,ECHEANCIER!$E$11,"""")))))))))) -> ENGIE | E12: =IF(A12="","",IF($A12=1,ECHEANCIER!$F$3,IF($A12=3,ECHEANCIER!$F$3,IF($A12=2,ECHEANCIER!$F$4,IF($A12=4,ECHEANCIER!$F$6,IF($A12=5,ECHEANCIER!$F$7,IF($A12=6,ECHEANCIER!$F$8,IF($A12=7,ECHEANCIER!$F$9,IF($A12=8,ECHEANCIER!$F$10,""""))))))))) -> GAZ-ELEC | F12: =IF($A12="","",IF($A12=2,ECHEANCIER!$G$4,IF($A12=4,ECHEANCIER!$G$6,IF($A12=5,ECHEANCIER!$G$7,IF($A12=6,ECHEANCIER!$G$8,IF($A12=7,ECHEANCIER!$G$9,IF($A12=8,ECHEANCIER!$G$10,""))))))) -> -120 | G12: 13105 | H12: =IF($A12="","",IF($A12=1,ECHEANCIER!$G$3,IF($A12=3,ECHEANCIER!$G$5,IF($A12<>"RETRAITE","")))) ->  | J12: -120
A13: 9 | B13: =IF(A13="","",IF($A13=1,"1",IF($A13=2,"5",IF($A13=3,"10",IF($A13=4,"10",IF($A13=5,"15",IF($A13=6,"15",IF($A13=7,"15",IF($A13=8,"20",IF($A13=9,"27","")))))))))) -> 27 | C13: =IF($A13=1,ECHEANCIER!$D$3,IF($A13=3,ECHEANCIER!$D$3,IF($A13=4,ECHEANCIER!$D$4,IF($A13=5,ECHEANCIER!$D$4,IF($A13=6,ECHEANCIER!$D$4,IF($A13=7,ECHEANCIER!$D$4,IF($A13=8,ECHEANCIER!$D$4,IF($A13=9,ECHEANCIER!$D$11)))))))) -> Prel | D13: =IF($A13="","",IF($A13=1,ECHEANCIER!$E$3,IF($A13=3,ECHEANCIER!$E$3,IF($A13=2,ECHEANCIER!$E$4,IF($A13=4,ECHEANCIER!$E$6,IF($A13=5,ECHEANCIER!$E$7,IF($A13=6,ECHEANCIER!$E$8,IF($A13=7,ECHEANCIER!$E$9,IF($A13=8,ECHEANCIER!$E$10,IF($A13=9,ECHEANCIER!$E$11,"""")))))))))) -> ST CHRIST | E13: =+IF($A13=9,"ass.voit") -> ass.voit | F13: =IF(AND($A13=9,$E13="ASS.VOIT",OR($A$1="janvier",$A$1="avril",$A$1="juillet",$A$1="octobre")),ECHEANCIER!$G$11,"") ->  | G13: 13105 | K13: =IF($E13="C. PORT LOYER",$F13,0) -> 0 | L13: =IF($E13="C. PORT CHARGES",$F13,0) -> 0 | M13: =IF($E13="MOUVEMENTS",$F13,0) -> 0
G14: 13105 | I14: =IF($E14="RECETTES DIVERSES",$F14,0) -> 0 | J14: =IF($E14="DEPENSES",$F14,0) -> 0 | K14: =IF($E14="C. PORT LOYER",$F14,0) -> 0 | L14: =IF($E14="C. PORT CHARGES",$F14,0) -> 0 | M14: =IF($E14="MOUVEMENTS",$F14,0) -> 0
G15: 13105 | I15: =IF($E15="RECETTES DIVERSES",$F15,0) -> 0 | J15: 0 | K15: 0 | L15: 0 | M15: 0
G16: 13105 | I16: =IF($E16="RECETTES DIVERSES",$F16,0) -> 0 | J16: 0 | K16: 0 | L16: 0 | M16: 0
G17: 13105 | I17: 0 | J17: 0 | K17: 0 | L17: 0 | M17: =IF($E17="DIVERS",$F17,0) -> 0
G18: =SUM(G17)+SUM(F18) -> 13105 | I18: 0 | J18: 0 | K18: 0 | L18: 0 | M18: 0
F19: =IF($A19="","",IF($A19=2,ECHEANCIER!$G$4,IF($A19=4,ECHEANCIER!$G$6,IF($A19=5,ECHEANCIER!$G$7,IF($A19=6,ECHEANCIER!$G$8,IF($A19=7,ECHEANCIER!$G$9,IF($A19=8,ECHEANCIER!$G$10,""))))))) ->  | G19: 13105 | I19: 0 | J19: =IF($A19="","",IF($A19=2,ECHEANCIER!$G$4,IF($A19=4,ECHEANCIER!$G$6,IF($A19=5,ECHEANCIER!$G$7,IF($A19=6,ECHEANCIER!$G$8,IF($A19=7,ECHEANCIER!$G$9,IF($A19=8,ECHEANCIER!$G$10,""))))))) ->  | K19: 0 | L19: 0 | M19: 0
G20: 13105 | I20: 0 | J20: =F20 -> 0 | K20: 0 | L20: 0 | M20: 0
A24: TOTAL MOIS | H24: =SUM(H5:H23) -> 1950 | I24: =SUM(I5:I23) -> 0 | J24: =SUM(J5:J23) -> -820 | K24: 0 | L24: 0 | M24: 0
A25: SOUS TOTAL | H25: =H24+H4 -> 9750 | I25: =I24+I4 -> 40 | J25: =J24+J4 -> -4200 | K25: 650 | L25: =L24+L4 -> -135 | M25: -500
A26: TOTAL | G26: =G20 -> 13105 | H26: =SUM(H25:I25) -> 9790 | J26: =J24+J4 -> -4200 | K26: =SUM(K25:L25) -> 515 | M26: =M24+M4 -> -500

Sheet JUILLET
A1: =MID(CELL("filename",A1),FIND("]",CELL("filename",A1))+1,32) -> JUILLET

Sheet AOUT
A1: =MID(CELL("filename",A1),FIND("]",CELL("filename",A1))+1,32) -> AOUT

Sheet SEPTEMBRE
A1: =MID(CELL("filename",A1),FIND("]",CELL("filename",A1))+1,32) -> SEPTEMBRE

Sheet OCTOBRE
A1: =MID(CELL("filename",A1),FIND("]",CELL("filename",A1))+1,32) -> OCTOBRE

Sheet NOVEMBRE
A1: =MID(CELL("filename",A1),FIND("]",CELL("filename",A1))+1,32) -> NOVEMBRE

Sheet DECEMBRE
A1: =MID(CELL("filename",A1),FIND("]",CELL("filename",A1))+1,32) -> DECEMBRE

Sheet Feuil4 (hidden)
